Workbook

Sheet Data (hidden)
A1: =IF(B1=1,TRUE,FALSE) -> FALSE | B1: 2 | G1: 2023 | L1: 2024 | Q1: 2025 | V1: =G1 -> 2023 | AA1: =L1 -> 2024 | AF1: =Q1 -> 2025
A2: Greece (in GWh) | C2: 2022 | D2: 2023 | E2: 2024 | G2: Q1 | H2: Q2 | I2: Q3 | J2: Q4 | L2: Q1 | M2: Q2 | N2: Q3 | O2: Q4 | Q2: Q1 | R2: Q2 | S2: Q3 | T2: Q4 | V2: Q1 | W2: H1 | X2: 9M | Y2: FY | AA2: Q1 | AB2: H1 | AC2: 9M | AD2: FY | AF2: Q1 | AG2: H1 | AH2: 9M | AI2: FY
A4: PPC sales | C4: 29882 | D4: =SUM(G4:J4) -> 26044.66 | E4: =IF(O4<>"",SUM(L4:O4),"") -> 24792.4 | G4: 6865.45 | H4: 5688.86 | I4: 7480.54 | J4: 6009.81 | L4: 5768.37 | M4: 5786.96 | N4: 7169.98 | O4: 6067.09 | Q4: 5887.99 | V4: =IF(G4>0,SUM($G4:G4),"") -> 6865.45 | W4: =IF(H4>0,SUM($G4:H4),"") -> 12554.31 | X4: =IF(I4>0,SUM($G4:I4),"") -> 20034.85 | Y4: =IF(J4>0,SUM($G4:J4),"") -> 26044.66 | AA4: =IF(L4="","",SUM($L4:L4)) -> 5768.37 | AB4: =IF(M4="","",SUM($L4:M4)) -> 11555.33 | AC4: =IF(N4="","",SUM($L4:N4)) -> 18725.31 | AD4: =IF(O4="","",SUM($L4:O4)) -> 24792.4 | AF4: =IF(Q4="","",SUM($Q4:Q4)) -> 5887.99 | AG4: =IF(R4="","",SUM($Q4:R4)) ->  | AH4: =IF(S4="","",SUM($Q4:S4)) ->  | AI4: =IF(T4="","",SUM($Q4:T4)) -> 
A5: Third Party Sales (estimation) | C5: 18011 | D5: =SUM(G5:J5) -> 20043.73 | E5: 24148.73 | G5: 4426.44 | H5: 4598 | I5: 5882.03 | J5: 5137.26 | L5: 5627.4 | M5: 5808.94 | N5: 6921.88 | O5: 5790.51 | Q5: 5922.89 | V5: =IF(G5>0,SUM($G5:G5),"") -> 4426.44 | W5: =IF(H5>0,SUM($G5:H5),"") -> 9024.44 | X5: =IF(I5>0,SUM($G5:I5),"") -> 14906.47 | Y5: =IF(J5>0,SUM($G5:J5),"") -> 20043.73 | AA5: =IF(L5="","",SUM($L5:L5)) -> 5627.4 | AB5: =IF(M5="","",SUM($L5:M5)) -> 11436.34 | AC5: =IF(N5="","",SUM($L5:N5)) -> 18358.22 | AD5: =IF(O5="","",SUM($L5:O5)) -> 24148.73 | AF5: =IF(Q5="","",SUM($Q5:Q5)) -> 5922.89 | AG5: =IF(R5="","",SUM($Q5:R5)) ->  | AH5: =IF(S5="","",SUM($Q5:S5)) ->  | AI5: =IF(T5="","",SUM($Q5:T5)) -> 
A7: Domestic Demand1 | C7: 55576 | D7: =SUM(G7:J7) -> 54066.73 | E7: =IF(O7<>"",SUM(L7:O7),"") -> 56981.2 | G7: 13232.42 | H7: 12291.9 | I7: 15968.66 | J7: 12573.75 | L7: 13500.99 | M7: 13412.47 | N7: 16824.24 | O7: 13243.5 | Q7: 13746.95 | V7: =IF(G7>0,SUM($G7:G7),"") -> 13232.42 | W7: =IF(H7>0,SUM($G7:H7),"") -> 25524.32 | X7: =IF(I7>0,SUM($G7:I7),"") -> 41492.98 | Y7: =IF(J7>0,SUM($G7:J7),"") -> 54066.73 | AA7: =IF(L7="","",SUM($L7:L7)) -> 13500.99 | AB7: =IF(M7="","",SUM($L7:M7)) -> 26913.46 | AC7: =IF(N7="","",SUM($L7:N7)) -> 43737.7 | AD7: =IF(O7="","",SUM($L7:O7)) -> 56981.2 | AF7: =IF(Q7="","",SUM($Q7:Q7)) -> 13746.95 | AG7: =IF(R7="","",SUM($Q7:R7)) -> 
A8: Domestic Demand (Mainland) | C8: 50688 | D8: =SUM('Demand (IPTO)'!B2:M2) -> 49490 | E8: =SUM('Demand (IPTO)'!B3:M3) -> 51812.5 | G8: ='Demand (IPTO)'!O2 -> 12350 | H8: ='Demand (IPTO)'!P2 -> 11169 | I8: ='Demand (IPTO)'!Q2 -> 14328 | J8: ='Demand (IPTO)'!R2 -> 11643 | L8: =IF('Demand (IPTO)'!O3>0,'Demand (IPTO)'!O3,"") -> 12458 | M8: =IF('Demand (IPTO)'!P3>0,'Demand (IPTO)'!P3,"") -> 12115.5 | N8: =IF('Demand (IPTO)'!Q3>0,'Demand (IPTO)'!Q3,"") -> 15062 | O8: =IF('Demand (IPTO)'!R3>0,'Demand (IPTO)'!R3,"") -> 12177 | Q8: 12740 | S8: =IF('Demand (IPTO)'!Q4>0,'Demand (IPTO)'!Q4,"") ->  | T8: =IF('Demand (IPTO)'!R4>0,'Demand (IPTO)'!R4,"") ->  | V8: =IF(G8>0,SUM($G8:G8),"") -> 12350 | W8: =IF(H8>0,SUM($G8:H8),"") -> 23519 | X8: =IF(I8>0,SUM($G8:I8),"") -> 37847 | Y8: =IF(J8>0,SUM($G8:J8),"") -> 49490 | AA8: =IF(L8="","",SUM($L8:L8)) -> 12458 | AB8: =IF(M8="","",SUM($L8:M8)) -> 24573.5 | AC8: =IF(N8="","",SUM($L8:N8)) -> 39635.5 | AD8: =IF(O8="","",SUM($L8:O8)) -> 51812.5 | AF8: =IF(Q8="","",SUM($Q8:Q8)) -> 12740 | AG8: =IF(R8="","",SUM($Q8:R8)) ->  | AH8: =IF(S8="","",SUM($Q8:S8)) ->  | AI8: =IF(T8="","",SUM($Q8:T8)) -> 
A10: 1. Domestic Demand is Total Demand minus exports.
G13: =$G$1 -> 2023 | L13: =$L$1 -> 2024 | Q13: =$Q$1 -> 2025 | V13: =$V$1 -> 2023 | AA13: =AA1 -> 2024 | AF13: =AF1 -> 2025
A14: Romania (in GWh) | C14: =C2 -> 2022 | D14: =D2 -> 2023 | E14: =E2 -> 2024 | G14: Q1 | H14: Q2 | I14: Q3 | J14: Q4 | L14: Q1 | M14: Q2 | N14: Q3 | O14: Q4 | Q14: Q1 | R14: Q2 | S14: Q3 | T14: Q4 | V14: Q1 | W14: H1 | X14: 9M | Y14: FY | AA14: Q1 | AB14: H1 | AC14: 9M | AD14: FY | AF14: Q1 | AG14: H1 | AH14: 9M | AI14: FY
A16: PPC Romania sales | C16: 9852 | D16: =SUM(G16:J16) -> 8237.9 | E16: =IF(O16<>"",SUM(L16:O16),"") -> 7696.99 | G16: 2338.52 | H16: 1946.58 | I16: 2032.6 | J16: 1920.2 | L16: 1892.19 | M16: 1747.56 | N16: 2012.22 | O16: 2045.02 | Q16: 1991.45 | V16: =IF(G16>0,SUM($G16:G16),"") -> 2338.52 | W16: =IF(H16>0,SUM($G16:H16),"") -> 4285.1 | X16: =IF(I16>0,SUM($G16:I16),"") -> 6317.7 | Y16: =IF(J16>0,SUM($G16:J16),"") -> 8237.9 | AA16: =IF(L16="","",SUM($L16:L16)) -> 1892.19 | AB16: =IF(M16="","",SUM($L16:M16)) -> 3639.75 | AC16: =IF(N16="","",SUM($L16:N16)) -> 5651.97 | AD16: =IF(O16="","",SUM($L16:O16)) -> 7696.99 | AF16: =IF(Q16="","",SUM($Q16:Q16)) -> 1991.45 | AG16: =IF(R16="","",SUM($Q16:R16)) ->  | AH16: =IF(S16="","",SUM($Q16:S16)) ->  | AI16: =IF(T16="","",SUM($Q16:T16)) -> 
A17: Third Party Sales (estimation) | C17: 37338 | D17: 37857 | E17: 40950 | G17: 8998 | H17: 9098 | I17: 9841 | J17: 9920 | L17: 10133 | M17: 9721 | N17: 10252 | O17: 10844 | Q17: 10189.38228 | V17: =IF(G17>0,SUM($G17:G17),"") -> 8998 | W17: =IF(H17>0,SUM($G17:H17),"") -> 18096 | X17: =IF(I17>0,SUM($G17:I17),"") -> 27937 | Y17: =IF(J17>0,SUM($G17:J17),"") -> 37857 | AA17: =IF(L17="","",SUM($L17:L17)) -> 10133 | AB17: =IF(M17="","",SUM($L17:M17)) -> 19854 | AC17: =IF(N17="","",SUM($L17:N17)) -> 30106 | AD17: =IF(O17="","",SUM($L17:O17)) -> 40950 | AF17: =IF(Q17="","",SUM($Q17:Q17)) -> 10189.38228 | AG17: =IF(R17="","",SUM($Q17:R17)) ->  | AH17: =IF(S17="","",SUM($Q17:S17)) ->  | AI17: =IF(T17="","",SUM($Q17:T17)) -> 
A19: Demand | C19: 53726.82888 | D19: =SUM(G19:J19) -> 51052.46 | E19: =IF(O19<>"",SUM(L19:O19),"") -> 53213.11 | G19: 13327.63 | H19: 11989.05 | I19: 12524.88 | J19: 13210.9 | L19: 13740.46 | M19: 12409.28 | N19: 13184.6 | O19: 13878.77 | Q19: 13689.16055 | V19: =IF(G19>0,SUM($G19:G19),"") -> 13327.63 | W19: =IF(H19>0,SUM($G19:H19),"") -> 25316.68 | X19: =IF(I19>0,SUM($G19:I19),"") -> 37841.56 | Y19: =IF(J19>0,SUM($G19:J19),"") -> 51052.46 | AA19: =IF(L19="","",SUM($L19:L19)) -> 13740.46 | AB19: =IF(M19="","",SUM($L19:M19)) -> 26149.74 | AC19: =IF(N19="","",SUM($L19:N19)) -> 39334.34 | AD19: =IF(O19="","",SUM($L19:O19)) -> 53213.11 | AF19: =IF(Q19="","",SUM($Q19:Q19)) -> 13689.16055 | AG19: =IF(R19="","",SUM($Q19:R19)) ->  | AH19: =IF(S19="","",SUM($Q19:S19)) ->  | AI19: =IF(T19="","",SUM($Q19:T19)) -> 
G23: =$G$1 -> 2023 | L23: =$L$1 -> 2024 | Q23: =$Q$1 -> 2025 | V23: =$V$1 -> 2023 | AA23: =AA1 -> 2024 | AF23: =AF1 -> 2025
A24: PPC Generation - Greece (in GWh) | C24: =C2 -> 2022 | D24: =D2 -> 2023 | E24: =E2 -> 2024 | G24: Q1 | H24: Q2 | I24: Q3 | J24: Q4 | L24: Q1 | M24: Q2 | N24: Q3 | O24: Q4 | Q24: Q1 | R24: Q2 | S24: Q3 | T24: Q4 | V24: Q1 | W24: H1 | X24: 9M | Y24: FY | AA24: Q1 | AB24: H1 | AC24: 9M | AD24: FY | AF24: Q1 | AG24: H1 | AH24: 9M | AI24: FY
A26: PPC Generation | C26: =SUM(C27:C30) -> 22602 | D26: =SUM(D27:D30) -> 19279.73 | E26: =SUM(E27:E30) -> 19614.56 | G26: =IF(SUM(G27:G30)=0,"",SUM(G27:G30)) -> 4286.24 | H26: =IF(SUM(H27:H30)=0,"",SUM(H27:H30)) -> 3861.87 | I26: 6069.17 | J26: 5062.45 | L26: =IF(SUM(L27:L30)=0,"",SUM(L27:L30)) -> 4244.22 | M26: =IF(SUM(M27:M30)=0,"",SUM(M27:M30)) -> 4446.64 | N26: 6059.71 | O26: 4863.99 | Q26: =IF(SUM(Q27:Q30)=0,"",SUM(Q27:Q30)) -> 4991.361 | R26: =IF(SUM(R27:R30)=0,"",SUM(R27:R30)) ->  | V26: =IF(G26>0,SUM($G26:G26),"") -> 4286.24 | W26: =IF(H26>0,SUM($G26:H26),"") -> 8148.11 | X26: =IF(I26>0,SUM($G26:I26),"") -> 14217.28 | Y26: =IF(J26>0,SUM($G26:J26),"") -> 19279.73 | AA26: =IF(L26="","",SUM($L26:L26)) -> 4244.22 | AB26: =IF(M26="","",SUM($L26:M26)) -> 8690.86 | AC26: =IF(N26="","",SUM($L26:N26)) -> 14750.57 | AD26: =IF(O26="","",SUM($L26:O26)) -> 19614.56 | AF26: =IF(Q26="","",SUM($Q26:Q26)) -> 4991.361 | AG26: =IF(R26="","",SUM($Q26:R26)) ->  | AH26: =IF(S26="","",SUM($Q26:S26)) ->  | AI26: =IF(T26="","",SUM($Q26:T26)) -> 
A27: Lignite | C27: 5460 | D27: =SUM(G27:J27) -> 4513.21 | E27: =IF(O27<>"",SUM(L27:O27),"") -> 3236.31 | G27: 1445.47 | H27: 693.39 | I27: 1149.96 | J27: 1224.39 | L27: 1050.23 | M27: 448.14 | N27: 826.17 | O27: 911.77 | Q27: 1127.21 | V27: =IF(G27>0,SUM($G27:G27),"") -> 1445.47 | W27: =IF(H27>0,SUM($G27:H27),"") -> 2138.86 | X27: =IF(I27>0,SUM($G27:I27),"") -> 3288.82 | Y27: =IF(J27>0,SUM($G27:J27),"") -> 4513.21 | AA27: =IF(L27="","",SUM($L27:L27)) -> 1050.23 | AB27: =IF(M27="","",SUM($L27:M27)) -> 1498.37 | AC27: =IF(N27="","",SUM($L27:N27)) -> 2324.54 | AD27: =IF(O27="","",SUM($L27:O27)) -> 3236.31 | AF27: =IF(Q27="","",SUM($Q27:Q27)) -> 1127.21 | AG27: =IF(R27="","",SUM($Q27:R27)) ->  | AH27: =IF(S27="","",SUM($Q27:S27)) ->  | AI27: =IF(T27="","",SUM($Q27:T27)) -> 
A28: Natural Gas | C28: 8678 | D28: 6284.39 | E28: =IF(O28<>"",SUM(L28:O28),"") -> 7711.4 | G28: 1179.57 | H28: 1417.35 | I28: 2048.47 | J28: 1639 | L28: 1330.39 | M28: 1774.72 | N28: 2297.51 | O28: 2308.78 | Q28: 2253.07 | V28: =IF(G28>0,SUM($G28:G28),"") -> 1179.57 | W28: =IF(H28>0,SUM($G28:H28),"") -> 2596.92 | X28: =IF(I28>0,SUM($G28:I28),"") -> 4645.39 | Y28: =IF(J28>0,SUM($G28:J28),"") -> 6284.39 | AA28: =IF(L28="","",SUM($L28:L28)) -> 1330.39 | AB28: =IF(M28="","",SUM($L28:M28)) -> 3105.11 | AC28: =IF(N28="","",SUM($L28:N28)) -> 5402.62 | AD28: =IF(O28="","",SUM($L28:O28)) -> 7711.4 | AF28: =IF(Q28="","",SUM($Q28:Q28)) -> 2253.07 | AG28: =IF(R28="","",SUM($Q28:R28)) ->  | AH28: =IF(S28="","",SUM($Q28:S28)) ->  | AI28: =IF(T28="","",SUM($Q28:T28)) -> 
A29: Oil | C29: 3973 | D29: 3685.01 | E29: 3870.43 | G29: 680.37 | H29: 849.33 | I29: 1395.4 | J29: 759.91 | L29: 678.85 | M29: 979.76 | N29: 1434.01 | O29: 777.81 | Q29: 681.07 | V29: =IF(G29>0,SUM($G29:G29),"") -> 680.37 | W29: =IF(H29>0,SUM($G29:H29),"") -> 1529.7 | X29: =IF(I29>0,SUM($G29:I29),"") -> 2925.1 | Y29: =IF(J29>0,SUM($G29:J29),"") -> 3685.01 | AA29: =IF(L29="","",SUM($L29:L29)) -> 678.85 | AB29: =IF(M29="","",SUM($L29:M29)) -> 1658.61 | AC29: =IF(N29="","",SUM($L29:N29)) -> 3092.62 | AD29: =IF(O29="","",SUM($L29:O29)) -> 3870.43 | AF29: =IF(Q29="","",SUM($Q29:Q29)) -> 681.07 | AG29: =IF(R29="","",SUM($Q29:R29)) ->  | AH29: =IF(S29="","",SUM($Q29:S29)) ->  | AI29: =IF(T29="","",SUM($Q29:T29)) -> 
A30: RES | C30: 4491 | D30: =SUM(G30:J30) -> 4797.12 | E30: =IF(O30<>"",SUM(L30:O30),"") -> 4796.42 | G30: 980.83 | H30: 901.8 | I30: 1475.34 | J30: 1439.15 | L30: 1184.75 | M30: 1244.02 | N30: 1502.02 | O30: 865.63 | Q30: 930.011 | V30: =IF(G30>0,SUM($G30:G30),"") -> 980.83 | W30: =IF(H30>0,SUM($G30:H30),"") -> 1882.63 | X30: =IF(I30>0,SUM($G30:I30),"") -> 3357.97 | Y30: =IF(J30>0,SUM($G30:J30),"") -> 4797.12 | AA30: =IF(L30="","",SUM($L30:L30)) -> 1184.75 | AB30: =IF(M30="","",SUM($L30:M30)) -> 2428.77 | AC30: =IF(N30="","",SUM($L30:N30)) -> 3930.79 | AD30: =IF(O30="","",SUM($L30:O30)) -> 4796.42 | AF30: =IF(Q30="","",SUM($Q30:Q30)) -> 930.011 | AG30: =IF(R30="","",SUM($Q30:R30)) ->  | AH30: =IF(S30="","",SUM($Q30:S30)) ->  | AI30: =IF(T30="","",SUM($Q30:T30)) -> 
A32: Third Party Generation | C32: 29422 | D32: =SUM(G32:J32) -> 29494.76 | E32: =IF(O32<>"",SUM(L32:O32),"") -> 37389.37 | G32: 6677.29 | H32: 7009.98 | I32: 8947.07 | J32: 6860.42 | L32: 8532.5 | M32: 9178.62 | N32: 10240.32 | O32: 9437.93 | Q32: 9535.693 | V32: =IF(G32>0,SUM($G32:G32),"") -> 6677.29 | W32: =IF(H32>0,SUM($G32:H32),"") -> 13687.27 | X32: =IF(I32>0,SUM($G32:I32),"") -> 22634.34 | Y32: =IF(J32>0,SUM($G32:J32),"") -> 29494.76 | AA32: =IF(L32="","",SUM($L32:L32)) -> 8532.5 | AB32: =IF(M32="","",SUM($L32:M32)) -> 17711.12 | AC32: =IF(N32="","",SUM($L32:N32)) -> 27951.44 | AD32: =IF(O32="","",SUM($L32:O32)) -> 37389.37 | AF32: =IF(Q32="","",SUM($Q32:Q32)) -> 9535.693 | AG32: =IF(R32="","",SUM($Q32:R32)) ->  | AH32: =IF(S32="","",SUM($Q32:S32)) ->  | AI32: =IF(T32="","",SUM($Q32:T32)) -> 
G35: =G$1 -> 2023 | L35: =L$1 -> 2024 | Q35: =Q$1 -> 2025 | V35: =V$1 -> 2023 | AA35: =AA$1 -> 2024 | AF35: =AF$1 -> 2025
A36: PPC Generation - Romania (in GWh) | C36: =C2 -> 2022 | D36: =D2 -> 2023 | E36: =E2 -> 2024 | G36: Q1 | H36: Q2 | I36: Q3 | J36: Q4 | L36: Q1 | M36: Q2 | N36: Q3 | O36: Q4 | Q36: Q1 | R36: Q2 | S36: Q3 | T36: Q4 | V36: Q1 | W36: H1 | X36: 9M | Y36: FY | AA36: Q1 | AB36: H1 | AC36: 9M | AD36: FY | AF36: Q1 | AG36: H1 | AH36: 9M | AI36: FY
A37: PPC Romania | C37: =IF(SUM(C38:C40)>0,SUM(C38:C40),"") -> 1236.530055 | D37: =IF(SUM(D38:D40)>0,SUM(D38:D40),"") -> 1334.62 | E37: =IF(SUM(E38:E40)>0,SUM(E38:E40),"") -> 1384.57 | G37: =IF(SUM(G38:G40)>0,SUM(G38:G40),"") -> 396.48 | H37: =IF(SUM(H38:H40)>0,SUM(H38:H40),"") -> 277.72 | I37: =IF(SUM(I38:I40)>0,SUM(I38:I40),"") -> 317.72 | J37: =IF(SUM(J38:J40)>0,SUM(J38:J40),"") -> 342.7 | L37: =IF(SUM(L38:L40)>0,SUM(L38:L40),"") -> 370.6 | M37: =IF(SUM(M38:M40)>0,SUM(M38:M40),"") -> 295.43 | N37: 222.59 | O37: 495.95 | Q37: =IF(SUM(Q38:Q40)>0,SUM(Q38:Q40),"") -> 570.069373 | R37: =IF(SUM(R38:R40)>0,SUM(R38:R40),"") ->  | V37: =SUM(V38:V40) -> 396.48 | W37: =SUM(W38:W40) -> 674.2 | X37: 991.92 | Y37: 1334.62 | AA37: =IF(SUM(AA38:AA40)>0,SUM(AA38:AA40),"") -> 370.6 | AB37: =IF(SUM(AB38:AB40)>0,SUM(AB38:AB40),"") -> 666.03 | AC37: 888.62 | AD37: 1384.57 | AF37: =IF(Q37="","",SUM($Q37:Q37)) -> 570.069373 | AG37: =IF(R37="","",SUM($Q37:R37)) ->  | AH37: =IF(S37="","",SUM($Q37:S37)) ->  | AI37: =IF(T37="","",SUM($Q37:T37)) -> 
A38: Wind | C38: 1193.988084 | D38: =SUM(G38:J38) -> 1244.59 | E38: =IF(O38<>"",SUM(L38:O38),"") -> 1261.83 | G38: 389.14 | H38: 265.25 | I38: 267.27 | J38: 322.93 | L38: 348.76 | M38: 252.2 | N38: 184.25 | O38: 476.62 | Q38: 540.234868 | V38: =IF(G38>0,SUM($G38:G38),"") -> 389.14 | W38: =IF(H38>0,SUM($G38:H38),"") -> 654.39 | X38: =IF(I38>0,SUM($G38:I38),"") -> 921.66 | Y38: =IF(J38>0,SUM($G38:J38),"") -> 1244.59 | AA38: =IF(L38="","",SUM($L38:L38)) -> 348.76 | AB38: =IF(M38="","",SUM($L38:M38)) -> 600.96 | AC38: =IF(N38="","",SUM($L38:N38)) -> 785.21 | AD38: =IF(O38="","",SUM($L38:O38)) -> 1261.83 | AF38: =IF(Q38="","",SUM($Q38:Q38)) -> 540.234868 | AG38: =IF(R38="","",SUM($Q38:R38)) ->  | AH38: =IF(S38="","",SUM($Q38:S38)) ->  | AI38: =IF(T38="","",SUM($Q38:T38)) -> 
A39: Solar | C39: 42.541971 | D39: 90.03 | E39: 119.04 | G39: 7.34 | H39: 12.47 | I39: 50.45 | J39: 19.77 | L39: 21.84 | M39: 43.23 | N39: 38.34 | O39: 15.63 | Q39: 24.146172 | V39: =IF(G39>0,SUM($G39:G39),"") -> 7.34 | W39: =IF(H39>0,SUM($G39:H39),"") -> 19.81 | X39: =IF(I39>0,SUM($G39:I39),"") -> 70.26 | Y39: =IF(J39>0,SUM($G39:J39),"") -> 90.03 | AA39: =IF(L39="","",SUM($L39:L39)) -> 21.84 | AB39: =IF(M39="","",SUM($L39:M39)) -> 65.07 | AC39: =IF(N39="","",SUM($L39:N39)) -> 103.41 | AD39: =IF(O39="","",SUM($L39:O39)) -> 119.04 | AF39: =IF(Q39="","",SUM($Q39:Q39)) -> 24.146172 | AG39: =IF(R39="","",SUM($Q39:R39)) ->  | AH39: =IF(S39="","",SUM($Q39:S39)) ->  | AI39: =IF(T39="","",SUM($Q39:T39)) -> 
A40: Other | D40: =SUM(G40:J40) -> 0 | E40: =IF(O40<>"",SUM(L40:O40),"") -> 3.7 | O40: 3.7 | Q40: 5.688333 | V40: =IF(G40>0,SUM($G40:G40),"") ->  | W40: =IF(H40>0,SUM($G40:H40),"") ->  | X40: =IF(I40>0,SUM($G40:I40),"") ->  | Y40: =IF(J40>0,SUM($G40:J40),"") ->  | AA40: =IF(L40="","",SUM($L40:L40)) ->  | AB40: =IF(M40="","",SUM($L40:M40)) ->  | AC40: =IF(N40="","",SUM($L40:N40)) ->  | AD40: =IF(O40="","",SUM($L40:O40)) -> 3.7 | AF40: =IF(Q40="","",SUM($Q40:Q40)) -> 5.688333 | AG40: =IF(R40="","",SUM($Q40:R40)) ->  | AH40: =IF(S40="","",SUM($Q40:S40)) ->  | AI40: =IF(T40="","",SUM($Q40:T40)) -> 
A42: RES Third Party (excl. Hydro) | C42: 7934.469945 | D42: =SUM(G42:J42) -> 8128.56 | E42: =IF(O42<>"",SUM(L42:O42),"") -> 7473.962014 | G42: 2354.79 | H42: 1850.57 | I42: 1873.91 | J42: 2049.29 | L42: 2232.4 | M42: 1781.57 | N42: 1841.15 | O42: 1618.842014 | Q42: 1612.239022 | R42: 1928.058277 | V42: 2354.785195 | W42: 4205.351853 | X42: 6079.263389 | Y42: 8128.55224 | AA42: =IF(L42="","",SUM($L42:L42)) -> 2232.4 | AB42: =IF(M42="","",SUM($L42:M42)) -> 4013.97 | AC42: =IF(N42="","",SUM($L42:N42)) -> 5855.12 | AD42: =IF(O42="","",SUM($L42:O42)) -> 7473.962014 | AF42: =IF(Q42="","",SUM($Q42:Q42)) -> 1612.239022 | AG42: =IF(R42="","",SUM($Q42:R42)) -> 3540.297299
G45: =G$1 -> 2023 | L45: =L$1 -> 2024 | Q45: =Q$1 -> 2025 | V45: =V$1 -> 2023 | AA45: =AA$1 -> 2024 | AF45: =AF$1 -> 2025
A46: PPC Generation - Bulgaria (in GWh) | C46: =C2 -> 2022 | D46: =D2 -> 2023 | E46: =E2 -> 2024 | G46: Q1 | H46: Q2 | I46: Q3 | J46: Q4 | L46: Q1 | M46: Q2 | N46: Q3 | O46: Q4 | Q46: Q1 | R46: Q2 | S46: Q3 | T46: Q4 | V46: Q1 | W46: H1 | X46: 9M | Y46: FY | AA46: Q1 | AB46: H1 | AC46: 9M | AD46: FY | AF46: Q1 | AG46: H1 | AH46: 9M | AI46: FY
A47: PPC - Bulgaria | D47: =IF(D48="","",D48) ->  | E47: =IF(E48="","",E48) -> 10 | G47: =IF(G48="","",G48) ->  | L47: =IF(L48="","",L48) ->  | O47: 10 | Q47: =IF(Q48="","",Q48) -> 12.24 | V47: =IF(V48="","",V48) ->  | AA47: =IF(AA48="","",AA48) ->  | AD47: 10 | AF47: =IF(AF48="","",AF48) -> 12.24
A48: Wind | E48: =SUM(L48:O48) -> 10 | O48: 10 | Q48: 12.24 | V48: =IF(G48>0,SUM($G48:G48),"") ->  | W48: =IF(H48>0,SUM($G48:H48),"") ->  | X48: =IF(I48>0,SUM($G48:I48),"") ->  | Y48: =IF(J48>0,SUM($G48:J48),"") ->  | AA48: =IF(L48="","",SUM($L48:L48)) ->  | AB48: =IF(M48="","",SUM($L48:M48)) ->  | AC48: =IF(N48="","",SUM($L48:N48)) ->  | AD48: =IF(O48="","",SUM($L48:O48)) -> 10 | AF48: =IF(Q48="","",SUM($Q48:Q48)) -> 12.24 | AG48: =IF(R48="","",SUM($Q48:R48)) ->  | AH48: =IF(S48="","",SUM($Q48:S48)) ->  | AI48: =IF(T48="","",SUM($Q48:T48)) -> 
G51: =G$1 -> 2023 | L51: =L$1 -> 2024 | Q51: =Q$1 -> 2025 | V51: =V$1 -> 2023 | AA51: =AA$1 -> 2024 | AF51: =AF$1 -> 2025
A52: PPC Market Shares - Greece | C52: =C2 -> 2022 | D52: =D2 -> 2023 | E52: =E2 -> 2024 | G52: Q1 | H52: Q2 | I52: Q3 | J52: Q4 | L52: Q1 | M52: Q2 | N52: Q3 | O52: Q4 | Q52: Q1 | R52: Q2 | S52: Q3 | T52: Q4 | V52: Q1 | W52: H1 | X52: 9M | Y52: FY | AA52: Q1 | AB52: H1 | AC52: 9M | AD52: FY | AF52: Q1 | AG52: H1 | AH52: 9M | AI52: FY
A54: Generation Market Share (average) | C54: 0.4344533292 | D54: =(D26/(D26+D32)) -> 0.395283067 | E54: =(E26/(E26+E32)) -> 0.3440913635 | G54: =(G26/(G26+G32)) -> 0.3909543733 | H54: =(H26/(H26+H32)) -> 0.3552173733 | I54: =(I26/(I26+I32)) -> 0.4041737479 | J54: =(J26/(J26+J32)) -> 0.4245999495 | L54: =IF(ISERROR((L26/(L26+L32))),"",(L26/(L26+L32))) -> 0.3321838469 | M54: =IF(ISERROR((M26/(M26+M32))),"",(M26/(M26+M32))) -> 0.3263526714 | N54: =IF(ISERROR((N26/(N26+N32))),"",(N26/(N26+N32))) -> 0.3717606655 | O54: =IF(ISERROR((O26/(O26+O32))),"",(O26/(O26+O32))) -> 0.3400934979 | Q54: =IF(ISERROR((Q26/(Q26+Q32))),"",(Q26/(Q26+Q32))) -> 0.3435907239 | R54: =IF(ISERROR((R26/(R26+R32))),"",(R26/(R26+R32))) ->  | S54: =IF(ISERROR((S26/(S26+S32))),"",(S26/(S26+S32))) ->  | T54: =IF(ISERROR((T26/(T26+T32))),"",(T26/(T26+T32))) ->  | V54: =(V26/(V26+V32)) -> 0.3909543733 | W54: =(W26/(W26+W32)) -> 0.3731608976 | X54: =(X26/(X26+X32)) -> 0.3857979649 | Y54: =(Y26/(Y26+Y32)) -> 0.395283067 | AA54: =IF(ISERROR(AA26/(AA26+AA32)),"",(AA26/(AA26+AA32))) -> 0.3321838469 | AB54: =IF(ISERROR(AB26/(AB26+AB32)),"",(AB26/(AB26+AB32))) -> 0.3291745543 | AC54: =IF(ISERROR(AC26/(AC26+AC32)),"",(AC26/(AC26+AC32))) -> 0.3454303439 | AD54: =IF(ISERROR(AD26/(AD26+AD32)),"",(AD26/(AD26+AD32))) -> 0.3440913635 | AF54: =IF(ISERROR(AF26/(AF26+AF32)),"",(AF26/(AF26+AF32))) -> 0.3435907239 | AG54: =IF(ISERROR(AG26/(AG26+AG32)),"",(AG26/(AG26+AG32))) ->  | AH54: =IF(ISERROR(AH26/(AH26+AH32)),"",(AH26/(AH26+AH32))) ->  | AI54: =IF(ISERROR(AI26/(AI26+AI32)),"",(AI26/(AI26+AI32))) -> 
A56: Retail Market Share (average) | C56: 0.6239325162 | D56: =D4/(D4+D5) -> 0.5651024043 | E56: =E4/(E4+E5) -> 0.5065759618 | G56: =G4/(G4+G5) -> 0.6079983067 | H56: =H4/(H4+H5) -> 0.5530220106 | I56: =I4/(I4+I5) -> 0.5598129701 | J56: =J4/(J4+J5) -> 0.5391380874 | L56: =IF(ISERROR(L4/(L4+L5)),"",L4/(L4+L5)) -> 0.5061851898 | M56: =IF(ISERROR(M4/(M4+M5)),"",M4/(M4+M5)) -> 0.4990522512 | N56: =IF(ISERROR(N4/(N4+N5)),"",N4/(N4+N5)) -> 0.5088029543 | O56: =IF(ISERROR(O4/(O4+O5)),"",O4/(O4+O5)) -> 0.5116625624 | Q56: =IF(ISERROR(Q4/(Q4+Q5)),"",Q4/(Q4+Q5)) -> 0.4985225487 | R56: =IF(ISERROR(R4/(R4+R5)),"",R4/(R4+R5)) ->  | S56: =IF(ISERROR(S4/(S4+S5)),"",S4/(S4+S5)) ->  | T56: =IF(ISERROR(T4/(T4+T5)),"",T4/(T4+T5)) ->  | V56: =V4/(V4+V5) -> 0.6079983067 | W56: =W4/(W4+W5) -> 0.5817904188 | X56: =X4/(X4+X5) -> 0.5733856076 | Y56: =Y4/(Y4+Y5) -> 0.5651024043 | AA56: =IF(ISERROR(AA4/(AA4+AA5)),"",AA4/(AA4+AA5)) -> 0.5061851898 | AB56: =IF(ISERROR(AB4/(AB4+AB5)),"",AB4/(AB4+AB5)) -> 0.5025876763 | AC56: =IF(ISERROR(AC4/(AC4+AC5)),"",AC4/(AC4+AC5)) -> 0.5049495018 | AD56: =IF(ISERROR(AD4/(AD4+AD5)),"",AD4/(AD4+AD5)) -> 0.5065759618 | AF56: =IF(ISERROR(AF4/(AF4+AF5)),"",AF4/(AF4+AF5)) -> 0.4985225487 | AG56: =IF(ISERROR(AG4/(AG4+AG5)),"",AG4/(AG4+AG5)) ->  | AH56: =IF(ISERROR(AH4/(AH4+AH5)),"",AH4/(AH4+AH5)) ->  | AI56: =IF(ISERROR(AI4/(AI4+AI5)),"",AI4/(AI4+AI5)) -> 
A57: Retail Market Share (IS end of period)1 | C57: 0.6329 | D57: =J57 -> 0.5611 | E57: =O57 -> 0.5192 | G57: 0.6153 | H57: 0.5499 | I57: 0.541 | J57: 0.5611 | L57: 0.5085 | M57: 0.5253 | N57: 0.506 | O57: 0.5192 | Q57: 0.4987 | V57: =IF(G57>0,G57,"") -> 0.6153 | W57: =IF(H57>0,H57,"") -> 0.5499 | X57: =IF(I57>0,I57,"") -> 0.541 | Y57: =IF(J57>0,J57,"") -> 0.5611 | AA57: =IF(L57>0,L57,"") -> 0.5085 | AB57: =IF(M57>0,M57,"") -> 0.5253 | AC57: =IF(N57>0,N57,"") -> 0.506 | AD57: =IF(O57>0,O57,"") -> 0.5192 | AF57: =IF(Q57>0,Q57,"") -> 0.4987 | AG57: =IF(R57>0,R57,"") ->  | AH57: =IF(S57>0,S57,"") ->  | AI57: =IF(T57>0,T57,"") -> 
A59: 1 ΕnEx monthly report (https://www.enexgroup.gr/el/markets-reports).
A61: PPC Market Shares - Romania
A62: Generation Market Share on RES (average) | C62: 0.1348304498 | D62: =D37/(D37+D42) -> 0.1410329297 | E62: =E37/(E37+E42) -> 0.1562979055 | G62: =G37/(G37+G42) -> 0.1441079938 | H62: =H37/(H37+H42) -> 0.1304897359 | I62: =I37/(I37+I42) -> 0.1449697257 | J62: =J37/(J37+J42) -> 0.1432698297 | L62: =IF(ISERROR(L37/(L37+L42)),"",L37/(L37+L42)) -> 0.1423741836 | M62: =IF(ISERROR(M37/(M37+M42)),"",M37/(M37+M42)) -> 0.142238806 | N62: =IF(ISERROR(N37/(N37+N42)),"",N37/(N37+N42)) -> 0.107857579 | O62: =IF(ISERROR(O37/(O37+O42)),"",O37/(O37+O42)) -> 0.2345147876 | Q62: =IF(ISERROR(Q37/(Q37+Q42)),"",Q37/(Q37+Q42)) -> 0.2612231041 | R62: =IF(ISERROR(R37/(R37+R42)),"",R37/(R37+R42)) ->  | S62: =IF(ISERROR(S37/(S37+S42)),"",S37/(S37+S42)) ->  | T62: =IF(ISERROR(T37/(T37+T42)),"",T37/(T37+T42)) ->  | V62: =V37/(V37+V42) -> 0.1441082454 | W62: =W37/(W37+W42) -> 0.1381684262 | X62: =X37/(X37+X42) -> 0.1402763789 | Y62: =Y37/(Y37+Y42) -> 0.1410330454 | AA62: =IF(ISERROR(AA37/(AA37+AA42)),"",AA37/(AA37+AA42)) -> 0.1423741836 | AB62: =IF(ISERROR(AB37/(AB37+AB42)),"",AB37/(AB37+AB42)) -> 0.1423141026 | AC62: =IF(ISERROR(AC37/(AC37+AC42)),"",AC37/(AC37+AC42)) -> 0.1317696115 | AD62: =IF(ISERROR(AD37/(AD37+AD42)),"",AD37/(AD37+AD42)) -> 0.1562979055 | AF62: =IF(ISERROR(AF37/(AF37+AF42)),"",AF37/(AF37+AF42)) -> 0.2612231041 | AG62: =IF(ISERROR(AG37/(AG37+AG42)),"",AG37/(AG37+AG42)) ->  | AH62: =IF(ISERROR(AH37/(AH37+AH42)),"",AH37/(AH37+AH42)) ->  | AI62: =IF(ISERROR(AI37/(AI37+AI42)),"",AI37/(AI37+AI42)) -> 
A63: Retail Market Share (average) | C63: 0.2087730451 | D63: =D16/(D16+D17) -> 0.1787160836 | E63: =E16/(E16+E17) -> 0.1582213 | G63: =G16/(G16+G17) -> 0.2062819984 | H63: =H16/(H16+H17) -> 0.176247535 | I63: 0.1711864978 | J63: 0.1621763146 | L63: =IF(ISERROR(L16/(L16+L17)),"",L16/(L16+L17)) -> 0.1573521915 | M63: =IF(ISERROR(M16/(M16+M17)),"",M16/(M16+M17)) -> 0.1523783282 | N63: 0.1640723992 | O63: 0.1586637308 | Q63: =IF(ISERROR(Q16/(Q16+Q17)),"",Q16/(Q16+Q17)) -> 0.1634904704 | R63: =IF(ISERROR(R16/(R16+R17)),"",R16/(R16+R17)) ->  | V63: =V16/(V16+V17) -> 0.2062819984 | W63: 0.1914606521 | X63: 0.1844330851 | Y63: 0.1787160836 | AA63: =IF(ISERROR(AA16/(AA16+AA17)),"",AA16/(AA16+AA17)) -> 0.1573521915 | AB63: =IF(ISERROR(AB16/(AB16+AB17)),"",AB16/(AB16+AB17)) -> 0.154924182 | AC63: =IF(ISERROR(AC16/(AC16+AC17)),"",AC16/(AC16+AC17)) -> 0.1580618251 | AD63: =IF(ISERROR(AD16/(AD16+AD17)),"",AD16/(AD16+AD17)) -> 0.1582213 | AF63: =IF(ISERROR(AF16/(AF16+AF17)),"",AF16/(AF16+AF17)) -> 0.1634904704 | AG63: =IF(ISERROR(AG16/(AG16+AG17)),"",AG16/(AG16+AG17)) ->  | AH63: =IF(ISERROR(AH16/(AH16+AH17)),"",AH16/(AH16+AH17)) ->  | AI63: =IF(ISERROR(AI16/(AI16+AI17)),"",AI16/(AI16+AI17)) -> 
G67: =Data!$G$1 -> 2023 | L67: =Data!$L$1 -> 2024 | Q67: =Data!$Q$1 -> 2025 | V67: =Data!$G$1 -> 2023 | AA67: =Data!$L$1 -> 2024 | AF67: =Data!$Q$1 -> 2025
A68: Other Operational KPIs | C68: 2022 | D68: 2023 | E68: 2024 | G68: Q1 | H68: Q2 | I68: Q3 | J68: Q4 | L68: Q1 | M68: Q2 | N68: Q3 | O68: Q4 | Q68: Q1 | R68: Q2 | S68: Q3 | T68: Q4 | V68: Q1 | W68: H1 | X68: 9M | Y68: FY | AA68: Q1 | AB68: H1 | AC68: 9M | AD68: FY | AF68: Q1 | AG68: H1 | AH68: 9M | AI68: FY
A70: RES capacity | C70: 3.48 GW | D70: 4.6 GW | E70: 5.5 GW | H70: 3.5 GW | I70: 3.8 GW | J70: 4.6 GW | L70: 4.7 GW | M70: 4.7 GW | N70: 4.9 GW | O70: 5.5 GW | Q70: 6.2 GW | X70: 3.8 GW | Y70: 4.6 GW | AA70: 4.7 GW | AB70: 4.7 GW | AC70: 4.9 GW | AD70: 5.5 GW | AF70: 6.2 GW | AG70: 6.3 GW
A71: RES capacity on total (%) | C71: 32.9% | D71: 0.427 | E71: 0.471 | H71: 33.2% | I71: 35.8 % | J71: 42.7% | L71: 43.1% | M71: 40.8 % | N71: 41.8% | O71: 47.1% | Q71: 0.5 | X71: 0.37 | Y71: 0.427 | AA71: 0.431 | AB71: 40.8% | AC71: 0.418 | AD71: 0.471 | AF71: 0.5 | AG71: 0.5
A72: RES production | C72: 4,491 GWh | D72: 6.1TWh | E72: 6.2TWh | L72: 1.6 TWh | M72: 1.5 TWh | N72: 1.7 TWh | O72: 1.4 TWh | Q72: 1.5 TWh | X72: 3,358 GWh | Y72: 6.1TWh | AA72: 1.6 TWh | AB72: 3.1TWh | AC72: 4.8 GWh | AD72: 6.2TWh | AF72: 1.5 TWh | AG72: 3.1 ΤWh
A73: RES production on total (%) | C73: 19.9% | D73: 0.297 | E73: 0.295 | L73: 0.337 | M73: 0.325 | N73: 0.275 | O73: 0.255 | Q73: 0.271 | X73: 0.236 | Y73: 0.297 | AA73: 0.337 | AB73: 33.1% | AC73: 0.308 | AD73: 0.295 | AF73: 0.271 | AG73: 0.32
A74: CO2 emissions intensity (Scope 1) | C74: 0.66 tCO2/MWh | D74: 0.50 tCO2/MWh | E74: 0.49 tCO2/MWh | L74: 0.5 tCO2/MWh | M74: tCO2/MWh | N74: tCO2/MWh | O74: tCO2/MWh | Q74: 0.55 tCO2/MWh | X74: 0.53 tCO2/MWh | Y74: 0.50 tCO2/MWh | AA74: 0.5 tCO2/MWh | AB74: 0.5 tCO2/MWh | AC74: 0.48 tCO2/MWh | AD74: 0.49 tCO2/MWh | AF74: 0.55 tCO2/MWh | AG74: 0.49 tCO2/MWh
A75: CO2 emissions (Scope 1) | C75: 14.8 MtCO2 | D75: 9.7 MtCO2 | E75: 10.3 MtCO2 | L75: 2.3 MtCO2 | M75: MtCO2 | N75: MtCO2 | O75: MtCO2 | Q75: 3.1 MtCO2 | X75: 7.6 MtCO2 | Y75: 9.7 MtCO2 | AA75: 2.3 MtCO2 | AB75: 4.4MtCO2 | AC75: 7.5 MtCO2 | AD75: 10.3 MtCO2 | AF75: 3.1 MtCO2 | AG75: 4.8 MtCO2
A77: SAIDI (Greece/Romania) | C77: 138/91 mins | D77: 134/89 mins | E77: 132/82 mins | L77: 26/19 mins | M77: mins | N77: mins | O77: mins | Q77: 21/19 mins | X77: 106/66 mins | Y77: 134/89 mins | AA77: 26/19 mins | AB77: 59/38 mins | AC77: 109/60 mins | AD77: 132/82 mins | AF77: 21/19 mins | AG77: 58/36 mins
A78: SAIFI (Greece/Romania) | C78: 1.8/2.6 | D78: 1.8/2.5 | E78: 1.7/2.3 | L78: 0.3/0.6 | Q78: 0.3/0.5 | X78: 1.5/1.9 | Y78: 1.8/2.5 | AA78: 0.3/0.6 | AB78: 0.8/1.2 | AC78: 1.4/1.8 | AD78: 1.7/2.3 | AF78: 0.3/0.5 | AG78: 0.72/0.96
A79: Total network length | C79: 377 k km | D79: 380 k km | E79: 386 k km | L79: 383 k km | M79: k km | N79: k km | O79: k km | Q79: 388 k km | X79: 247/133 k km | Y79: 380 k km | AA79: 383 k km | AB79: 383 k km | AC79: 385 k km | AD79: 386 k km | AF79: 388 k km | AG79: 388 k km
A81: Online penetration/myPPC app (Greece) | C81: 25.6% | D81: 0.29 | E81: 0.3 | L81: 0.299 | M81: % | N81: % | O81: % | Q81: 0.32 | X81: 0.278 | Y81: 0.29 | AA81: 0.299 | AB81: 30.7% | AC81: 0.317 | AD81: 0.3 | AF81: 0.32 | AG81: 33.5%
A82: Online penetration/myPPC app (Romania) | C82: 0.4 | D82: 0.59 | E82: 0.62 | L82: 0.6 | M82: % | N82: % | O82: % | Q82: 0.64 | X82: 0.582 | Y82: 0.59 | AA82: 0.6 | AB82: 0.61 | AC82: 0.61 | AD82: 0.62 | AF82: 0.64 | AG82: 0.64
A83: Charging points installed (Greece & Romania) | C83: 1360 | D83: 2401 | E83: 3087 | L83: 2490 | Q83: 3267 | X83: 1731 | Y83: 2401 | AA83: 2490 | AB83: 2696 | AC83: 2925 | AD83: 3087 | AF83: 3267 | AG83: 3509
G86: =Data!$G$1 -> 2023 | L86: =Data!$L$1 -> 2024 | Q86: =Data!$Q$1 -> 2025 | V86: =Data!$G$1 -> 2023 | AA86: =Data!$L$1 -> 2024 | AF86: =Data!$Q$1 -> 2025
A87: Investments (in m) | C87: 2022 | D87: 2023 | E87: 2024 | G87: Q1 | H87: Q2 | I87: Q3 | J87: Q4 | L87: Q1 | M87: Q2 | N87: Q3 | O87: Q4 | Q87: Q1 | R87: Q2 | S87: Q3 | T87: Q4 | V87: Q1 | W87: H1 | X87: 9M | Y87: FY | AA87: Q1 | AB87: H1 | AC87: 9M | AD87: FY | AF87: Q1 | AG87: H1 | AH87: 9M | AI87: FY
A89: Renewables | D89: 843 | E89: 1289 | L89: 191.631 | M89: =AB89-L89 -> 88.68742386 | N89: =AC89-AB89 -> 64.20757614 | O89: =AD89-AC89 -> 944.474 | Q89: 104.046 | V89: =IF(G89>0,SUM($G89:G89),"") ->  | W89: =IF(H89>0,SUM($G89:H89),"") ->  | X89: =IF(I89>0,SUM($G89:I89),"") ->  | Y89: =IF(J89>0,SUM($G89:J89),"") ->  | AA89: =IF(L89="","",SUM($L89:L89)) -> 191.631 | AB89: 280.3184239 | AC89: 344.526 | AD89: 1289 | AF89: =IF(Q89="","",SUM($Q89:Q89)) -> 104.046 | AH89: =IF(S89="","",SUM($Q89:S89)) ->  | AI89: =IF(T89="","",SUM($Q89:T89)) -> 
A90: Distribution | D90: 1342 | E90: 1042.643 | L90: 228.094 | M90: =AB90-L90 -> 236.231 | N90: =AC90-AB90 -> 256.755 | O90: =AD90-AC90 -> 321.563 | Q90: 282.265 | V90: =IF(G90>0,SUM($G90:G90),"") ->  | W90: =IF(H90>0,SUM($G90:H90),"") ->  | X90: =IF(I90>0,SUM($G90:I90),"") ->  | Y90: =IF(J90>0,SUM($G90:J90),"") ->  | AA90: =IF(L90="","",SUM($L90:L90)) -> 228.094 | AB90: 464.325 | AC90: 721.08 | AD90: 1042.643 | AF90: =IF(Q90="","",SUM($Q90:Q90)) -> 282.265 | AH90: =IF(S90="","",SUM($Q90:S90)) ->  | AI90: =IF(T90="","",SUM($Q90:T90)) -> 
A91: Flexible Generation | D91: 298.928 | E91: 245.713 | L91: 53.643 | M91: 12.429 | N91: 116.162 | O91: 63.479 | Q91: 35.394 | V91: =IF(G91>0,SUM($G91:G91),"") ->  | W91: =IF(H91>0,SUM($G91:H91),"") ->  | X91: =IF(I91>0,SUM($G91:I91),"") ->  | Y91: =IF(J91>0,SUM($G91:J91),"") ->  | AA91: =IF(L91="","",SUM($L91:L91)) -> 53.643 | AB91: 66.072 | AC91: 182.234 | AD91: 245.713 | AF91: =IF(Q91="","",SUM($Q91:Q91)) -> 35.394 | AH91: =IF(S91="","",SUM($Q91:S91)) ->  | AI91: =IF(T91="","",SUM($Q91:T91)) -> 
A92: Telecom | D92: 25.803 | E92: 92.822 | L92: 10.807 | M92: 20.625 | N92: 14.905 | O92: 46.485 | Q92: 18.441 | V92: =IF(G92>0,SUM($G92:G92),"") ->  | W92: =IF(H92>0,SUM($G92:H92),"") ->  | X92: =IF(I92>0,SUM($G92:I92),"") ->  | Y92: =IF(J92>0,SUM($G92:J92),"") ->  | AA92: =IF(L92="","",SUM($L92:L92)) -> 10.807 | AB92: 31.432 | AC92: 46.337 | AD92: 92.822 | AF92: =IF(Q92="","",SUM($Q92:Q92)) -> 18.441 | AH92: =IF(S92="","",SUM($Q92:S92)) ->  | AI92: =IF(T92="","",SUM($Q92:T92)) -> 
A93: Digitalization/Efficiency | D93: 32.216 | E93: 66.721 | L93: 6.129 | M93: 12.742 | N93: 14.093 | O93: 33.757 | Q93: 18.084 | V93: =IF(G93>0,SUM($G93:G93),"") ->  | W93: =IF(H93>0,SUM($G93:H93),"") ->  | X93: =IF(I93>0,SUM($G93:I93),"") ->  | Y93: =IF(J93>0,SUM($G93:J93),"") ->  | AA93: =IF(L93="","",SUM($L93:L93)) -> 6.129 | AB93: 18.871 | AC93: 32.964 | AD93: 66.721 | AF93: =IF(Q93="","",SUM($Q93:Q93)) -> 18.084 | AH93: =IF(S93="","",SUM($Q93:S93)) ->  | AI93: =IF(T93="","",SUM($Q93:T93)) -> 
A94: Retail/E-mobility/Other | D94: 48 | E94: 311 | L94: 10.425 | M94: 250.15 | N94: 19.421 | O94: 31.004 | Q94: 18.155 | V94: =IF(G94>0,SUM($G94:G94),"") ->  | W94: =IF(H94>0,SUM($G94:H94),"") ->  | X94: =IF(I94>0,SUM($G94:I94),"") ->  | Y94: =IF(J94>0,SUM($G94:J94),"") ->  | AA94: =IF(L94="","",SUM($L94:L94)) -> 10.425 | AB94: 260.575 | AC94: 279.996 | AD94: 311 | AF94: =IF(Q94="","",SUM($Q94:Q94)) -> 18.155 | AH94: =IF(S94="","",SUM($Q94:S94)) ->  | AI94: =IF(T94="","",SUM($Q94:T94)) -> 

Sheet Demand (IPTO) (hidden)
A1: IPTO | B1: Jan | C1: Feb | D1: Mar | E1: Apr | F1: May | G1: Jun | H1: Jul | I1: Aug | J1: Sep | K1: Oct | L1: Nov | M1: Dec | O1: Q1 | P1: Q2 | Q1: Q3 | R1: Q4 | S1: FY
A2: 2023 | B2: 4244 | C2: 4097 | D2: 4009 | E2: 3609 | F2: 3662 | G2: 3898 | H2: 5530 | I2: 4951 | J2: 3847 | K2: 3679 | L2: 3750 | M2: 4214 | O2: =B2+C2+D2 -> 12350 | P2: =E2+F2+G2 -> 11169 | Q2: =H2+I2+J2 -> 14328 | R2: =K2+L2+M2 -> 11643 | S2: =SUM(B2:M2) -> 49490
A3: 2024 | B3: 4536 | C3: 4011 | D3: 3911 | E3: 3555 | F3: 3660 | G3: 4900.5 | H3: 5803 | I3: 5170 | J3: 4089 | K3: 3837 | L3: 3989 | M3: 4351 | O3: =B3+C3+D3 -> 12458 | P3: =E3+F3+G3 -> 12115.5 | Q3: =H3+I3+J3 -> 15062 | R3: =K3+L3+M3 -> 12177 | S3: =SUM(B3:M3) -> 51812.5
A4: 2025 2 | B4: 4443.58 | C4: 4274.44 | D4: 4035.36 | E4: 3687.16 | F4: 3725.1 | G4: 4553.82 | O4: =B4+C4+D4 -> 12753.38 | P4: =E4+F4+G4 -> 11966.08 | Q4: =H4+I4+J4 -> 0 | R4: =K4+L4+M4 -> 0 | S4: =SUM(B4:M4) -> 24719.46
A7: IPTO (excluding pumping)1 | B7: Jan | C7: Feb | D7: Mar | E7: Apr | F7: May | G7: Jun | H7: Jul | I7: Aug | J7: Sep | K7: Oct | L7: Nov | M7: Dec | O7: Q1 | P7: Q2 | Q7: Q3 | R7: Q4 | S7: FY
A8: 2023 | B8: 4212 | C8: 4079 | D8: 3974 | E8: 3576 | F8: 3624 | G8: 3876 | H8: 5519 | I8: 4938 | J8: 3824 | K8: 3663 | L8: 3707 | M8: 4173 | O8: =B8+C8+D8 -> 12265 | P8: =E8+F8+G8 -> 11076 | Q8: =H8+I8+J8 -> 14281 | R8: =K8+L8+M8 -> 11543 | S8: =SUM(B8:M8) -> 49165
A9: 2024 | B9: 4484 | C9: 3970 | D9: 3848 | E9: 3485 | F9: 3600 | G9: 4846 | H9: 5759 | I9: 5112 | J9: 4014 | K9: 3753 | L9: 3945 | M9: 4302 | O9: =B9+C9+D9 -> 12302 | P9: =E9+F9+G9 -> 11931 | Q9: =H9+I9+J9 -> 14885 | R9: =K9+L9+M9 -> 12000 | S9: =SUM(B9:M9) -> 51118
A10: 2025 2 | B10: 4407.88 | C10: 4246.12 | D10: 3940.68 | E10: 3585.86 | F10: 3623.67 | G10: 4463.22 | O10: =B10+C10+D10 -> 12594.68 | P10: =E10+F10+G10 -> 11672.75 | Q10: =H10+I10+J10 -> 0 | R10: =K10+L10+M10 -> 0 | S10: =SUM(B10:M10) -> 24267.43
A12: 1. Total Demand is defined as the generation on the mainland and the interconnected islands required to supply the Load (excluding pumping). More specifically, the estimation of Total Demand includes the estimation of System Demand and the estimation of demand covered by production units connected to the Network. Network generation results from certified measurements for the Medium Voltage and measurements and estimations for the Low Voltage. 2. Provisional data for March 2025.

Sheet Dashboard

Sheet Demand
G1: =Data!$L$1 -> 2024 | L1: =Data!$Q$1 -> 2025 | N1: YoY Change
B2: Greece (in GWh) | D2: 2023 | E2: 2024 | G2: =IF(Data!$A$1=TRUE,Data!G2,Data!V2) -> Q1 | H2: =IF(Data!$A$1=TRUE,Data!H2,Data!W2) -> H1 | I2: =IF(Data!$A$1=TRUE,Data!I2,Data!X2) -> 9M | J2: =IF(Data!$A$1=TRUE,Data!J2,Data!Y2) -> FY | L2: =IF(Data!$A$1=TRUE,Data!L2,Data!AA2) -> Q1 | N2: =G2 -> Q1
B4: PPC sales | D4: =Data!D4 -> 26044.66 | E4: =Data!E4 -> 24792.4 | G4: =IF(Data!$A$1=TRUE,Data!L4,Data!AA4) -> 5768.37 | H4: =IF(Data!$A$1=TRUE,Data!M4,Data!AB4) -> 11555.33 | I4: =IF(Data!$A$1=TRUE,Data!N4,Data!AC4) -> 18725.31 | J4: =IF(Data!$A$1=TRUE,Data!O4,Data!AD4) -> 24792.4 | L4: =IF(Data!$A$1=TRUE,IF(Data!Q4="","",Data!Q4),Data!AF4) -> 5887.99 | N4: =IF(ISERROR(L4/G4-1),"",L4/G4-1) -> 0.02073722733
B7: Domestic Demand (Mainland & NII) | D7: =Data!D7 -> 54066.73 | E7: =Data!E7 -> 56981.2 | G7: =IF(Data!$A$1=TRUE,Data!L7,Data!AA7) -> 13500.99 | H7: =IF(Data!$A$1=TRUE,Data!M7,Data!AB7) -> 26913.46 | I7: =IF(Data!$A$1=TRUE,Data!N7,Data!AC7) -> 43737.7 | J7: =IF(Data!$A$1=TRUE,Data!O7,Data!AD7) -> 56981.2 | L7: =IF(Data!$A$1=TRUE,IF(Data!Q7="","",Data!Q7),Data!AF7) -> 13746.95 | N7: =IF(ISERROR(L7/G7-1),"",L7/G7-1) -> 0.01821792328
B8: Total Demand (Mainland) | D8: =Data!D8 -> 49490 | E8: =Data!E8 -> 51812.5 | G8: =IF(Data!$A$1=TRUE,Data!L8,Data!AA8) -> 12458 | H8: =IF(Data!$A$1=TRUE,Data!M8,Data!AB8) -> 24573.5 | I8: =IF(Data!$A$1=TRUE,Data!N8,Data!AC8) -> 39635.5 | J8: =IF(Data!$A$1=TRUE,Data!O8,Data!AD8) -> 51812.5 | L8: =IF(Data!$A$1=TRUE,IF(Data!Q8="","",Data!Q8),Data!AF8) -> 12740 | N8: =IF(ISERROR(L8/G8-1),"",L8/G8-1) -> 0.02263605715
B10: 1. Source: Company data. Domestic Demand is Total Demand minus exports. 2. Source: IPTO. Based on provisional data for Q1 2025
N11: YoY Change
B12: Romania (in GWh) | D12: 2023 | E12: 2024 | G12: =IF(Data!$A$1=TRUE,Data!G2,Data!V2) -> Q1 | H12: =IF(Data!$A$1=TRUE,Data!H2,Data!W2) -> H1 | I12: =IF(Data!$A$1=TRUE,Data!I2,Data!X2) -> 9M | J12: =IF(Data!$A$1=TRUE,Data!J2,Data!Y2) -> FY | L12: =IF(Data!$A$1=TRUE,Data!L2,Data!AA2) -> Q1 | N12: =G2 -> Q1
B14: PPC Romania sales | D14: =Data!D16 -> 8237.9 | E14: =Data!E16 -> 7696.99 | G14: =IF(Data!$A$1=TRUE,Data!L16,Data!AA16) -> 1892.19 | H14: =IF(Data!$A$1=TRUE,Data!M16,Data!AB16) -> 3639.75 | I14: =IF(Data!$A$1=TRUE,Data!N16,Data!AC16) -> 5651.97 | J14: =IF(Data!$A$1=TRUE,Data!O16,Data!AD16) -> 7696.99 | L14: =IF(Data!$A$1=TRUE,IF(Data!Q16="","",Data!Q16),Data!AF16) -> 1991.45 | N14: =IF(ISERROR(L14/G14-1),"",L14/G14-1) -> 0.05245773416
B16: Demand1 | D16: =Data!D19 -> 51052.46 | E16: =Data!E19 -> 53213.11 | G16: =IF(Data!$A$1=TRUE,Data!L19,Data!AA19) -> 13740.46 | H16: =IF(Data!$A$1=TRUE,Data!M19,Data!AB19) -> 26149.74 | I16: =IF(Data!$A$1=TRUE,Data!N19,Data!AC19) -> 39334.34 | J16: =IF(Data!$A$1=TRUE,Data!O19,Data!AD19) -> 53213.11 | L16: =IF(Data!$A$1=TRUE,IF(Data!Q19="","",Data!Q19),Data!AF19) -> 13689.16055 | N16: =IF(ISERROR(L16/G16-1),"",L16/G16-1) -> -0.003733459367
B18: 1. Source: Transelectrica. Based on provisional data for Q1 2025

Sheet Generation
G1: =Data!$L$1 -> 2024 | L1: =Data!$Q$1 -> 2025 | N1: YoY Change
B2: Greece (in GWh) | D2: 2023 | E2: 2024 | G2: =IF(Data!$A$1=TRUE,Data!G24,Data!V24) -> Q1 | H2: =IF(Data!$A$1=TRUE,Data!H24,Data!W24) -> H1 | I2: =IF(Data!$A$1=TRUE,Data!I24,Data!X24) -> 9M | J2: =IF(Data!$A$1=TRUE,Data!J24,Data!Y24) -> FY | L2: =IF(Data!$A$1=TRUE,IF(Data!L24="","",Data!L24),Data!AA24) -> Q1 | N2: =G2 -> Q1
B4: PPC Generation | D4: =SUM(D5:D8) -> 19279.73 | E4: =SUM(E5:E8) -> 19614.56 | G4: =SUM(G5:G8) -> 4244.22 | H4: =SUM(H5:H8) -> 8690.86 | I4: =SUM(I5:I8) -> 14750.57 | J4: =SUM(J5:J8) -> 19614.56 | L4: =IF(SUM(L5:L8)=0,"",SUM(L5:L8)) -> 4991.361 | N4: =IF(ISERROR(L4/G4-1),"",L4/G4-1) -> 0.1760372931
B5: Lignite | D5: =Data!D27 -> 4513.21 | E5: =Data!E27 -> 3236.31 | G5: =IF(Data!$A$1=TRUE,Data!L27,Data!AA27) -> 1050.23 | H5: =IF(Data!$A$1=TRUE,Data!M27,Data!AB27) -> 1498.37 | I5: =IF(Data!$A$1=TRUE,Data!N27,Data!AC27) -> 2324.54 | J5: =IF(Data!$A$1=TRUE,Data!O27,Data!AD27) -> 3236.31 | L5: =IF(Data!$A$1=TRUE,IF(Data!Q27="","",Data!Q27),Data!AF27) -> 1127.21 | N5: =IF(ISERROR(L5/G5-1),"",L5/G5-1) -> 0.07329822991
B6: Gas | D6: =Data!D28 -> 6284.39 | E6: =Data!E28 -> 7711.4 | G6: =IF(Data!$A$1=TRUE,Data!L28,Data!AA28) -> 1330.39 | H6: =IF(Data!$A$1=TRUE,Data!M28,Data!AB28) -> 3105.11 | I6: =IF(Data!$A$1=TRUE,Data!N28,Data!AC28) -> 5402.62 | J6: =IF(Data!$A$1=TRUE,Data!O28,Data!AD28) -> 7711.4 | L6: =IF(Data!$A$1=TRUE,IF(Data!Q28="","",Data!Q28),Data!AF28) -> 2253.07 | N6: =IF(ISERROR(L6/G6-1),"",L6/G6-1) -> 0.6935409917
B7: Oil | D7: =Data!D29 -> 3685.01 | E7: =Data!E29 -> 3870.43 | G7: =IF(Data!$A$1=TRUE,Data!L29,Data!AA29) -> 678.85 | H7: =IF(Data!$A$1=TRUE,Data!M29,Data!AB29) -> 1658.61 | I7: =IF(Data!$A$1=TRUE,Data!N29,Data!AC29) -> 3092.62 | J7: =IF(Data!$A$1=TRUE,Data!O29,Data!AD29) -> 3870.43 | L7: =IF(Data!$A$1=TRUE,IF(Data!Q29="","",Data!Q29),Data!AF29) -> 681.07 | N7: =IF(ISERROR(L7/G7-1),"",L7/G7-1) -> 0.003270236429
B8: RES (incl. Large Hydro) | D8: =Data!D30 -> 4797.12 | E8: =Data!E30 -> 4796.42 | G8: =IF(Data!$A$1=TRUE,Data!L30,Data!AA30) -> 1184.75 | H8: =IF(Data!$A$1=TRUE,Data!M30,Data!AB30) -> 2428.77 | I8: =IF(Data!$A$1=TRUE,Data!N30,Data!AC30) -> 3930.79 | J8: =IF(Data!$A$1=TRUE,Data!O30,Data!AD30) -> 4796.42 | L8: =IF(Data!$A$1=TRUE,IF(Data!Q30="","",Data!Q30),Data!AF30) -> 930.011 | N8: =IF(ISERROR(L8/G8-1),"",L8/G8-1) -> -0.2150149821
B11: Romania (in GWh) | D11: 2023 | E11: 2024 | G11: =IF(Data!$A$1=TRUE,Data!G24,Data!V24) -> Q1 | H11: =IF(Data!$A$1=TRUE,Data!H24,Data!W24) -> H1 | I11: =IF(Data!$A$1=TRUE,Data!I24,Data!X24) -> 9M | J11: =IF(Data!$A$1=TRUE,Data!J24,Data!Y24) -> FY | L11: =IF(Data!$A$1=TRUE,IF(Data!L24="","",Data!L24),Data!AA24) -> Q1 | N11: =G11 -> Q1
B13: PPC Generation
B14: RES | D14: =Data!D37 -> 1334.62 | E14: =Data!E37 -> 1384.57 | G14: =IF(Data!$A$1=TRUE,Data!L37,Data!AA37) -> 370.6 | H14: =IF(Data!$A$1=TRUE,Data!M37,Data!AB37) -> 666.03 | I14: =IF(Data!$A$1=TRUE,Data!N37,Data!AC37) -> 888.62 | J14: =IF(Data!$A$1=TRUE,Data!O37,Data!AD37) -> 1384.57 | L14: =IF(Data!$A$1=TRUE,IF(Data!Q37="","",Data!Q37),Data!AF37) -> 570.069373 | N14: =IF(ISERROR(L14/G14-1),"",L14/G14-1) -> 0.5382336023
B17: Bulgaria (in GWh) | D17: 2023 | E17: 2024 | G17: =IF(Data!$A$1=TRUE,Data!G24,Data!V24) -> Q1 | H17: =IF(Data!$A$1=TRUE,Data!H24,Data!W24) -> H1 | I17: =IF(Data!$A$1=TRUE,Data!I24,Data!X24) -> 9M | J17: =IF(Data!$A$1=TRUE,Data!J24,Data!Y24) -> FY | L17: =IF(Data!$A$1=TRUE,IF(Data!L24="","",Data!L24),Data!AA24) -> Q1
B19: PPC Generation
B20: RES | D20: =IF(Data!D47=0,"",Data!D47) ->  | E20: =IF(Data!E47=0,"",Data!E47) -> 10 | G20: =IF(IF(Data!$A$1=TRUE,Data!L47,Data!AA47)=0,"",IF(Data!$A$1=TRUE,Data!L47,Data!AA47)) ->  | H20: =IF(IF(Data!$A$1=TRUE,Data!M47,Data!AB47)=0,"",IF(Data!$A$1=TRUE,Data!M47,Data!AB47)) ->  | I20: =IF(IF(Data!$A$1=TRUE,Data!N47,Data!AC47)=0,"",IF(Data!$A$1=TRUE,Data!N47,Data!AC47)) ->  | J20: =IF(IF(Data!$A$1=TRUE,Data!O47,Data!AD47)=0,"",IF(Data!$A$1=TRUE,Data!O47,Data!AD47)) -> 10 | L20: =IF(Data!$A$1=TRUE,IF(Data!Q47="","",Data!Q47),Data!AF47) -> 12.24
B22: Sources: Company data, IPTO, Transelectrica

Sheet Market Shares
G1: =Data!$L$1 -> 2024 | L1: =Data!$Q$1 -> 2025
B2: PPC Market Shares (Greece) | D2: 2023 | E2: 2024 | G2: =IF(Data!$A$1=TRUE,Data!G52,Data!V52) -> Q1 | H2: =IF(Data!$A$1=TRUE,Data!H52,Data!W52) -> H1 | I2: =IF(Data!$A$1=TRUE,Data!I52,Data!X52) -> 9M | J2: =IF(Data!$A$1=TRUE,Data!J52,Data!Y52) -> FY | L2: =IF(Data!$A$1=TRUE,IF(Data!L52="","",Data!L52),IF(Data!AA52="","",Data!AA52)) -> Q1
B4: Generation Market Share (average) | D4: =Data!D54 -> 0.395283067 | E4: =Data!E54 -> 0.3440913635 | G4: =IF(Data!$A$1=TRUE,Data!L54,Data!AA54) -> 0.3321838469 | H4: =IF(Data!$A$1=TRUE,Data!M54,Data!AB54) -> 0.3291745543 | I4: =IF(Data!$A$1=TRUE,Data!N54,Data!AC54) -> 0.3454303439 | J4: =IF(Data!$A$1=TRUE,Data!O54,Data!AD54) -> 0.3440913635 | L4: =IF(Data!$A$1=TRUE,IF(Data!Q54="","",Data!Q54),IF(Data!AF54="","",Data!AF54)) -> 0.3435907239
B6: Retail Market Share (average) | D6: =Data!D56 -> 0.5651024043 | E6: =Data!E56 -> 0.5065759618 | G6: =IF(Data!$A$1=TRUE,Data!L56,Data!AA56) -> 0.5061851898 | H6: =IF(Data!$A$1=TRUE,Data!M56,Data!AB56) -> 0.5025876763 | I6: =IF(Data!$A$1=TRUE,Data!N56,Data!AC56) -> 0.5049495018 | J6: =IF(Data!$A$1=TRUE,Data!O56,Data!AD56) -> 0.5065759618 | L6: =IF(Data!$A$1=TRUE,IF(Data!Q56="","",Data!Q56),IF(Data!AF56="","",Data!AF56)) -> 0.4985225487
B7: Retail Market Share (Mainland end of period)1 | D7: =Data!D57 -> 0.5611 | E7: =Data!E57 -> 0.5192 | G7: =IF(Data!$A$1=TRUE,Data!L57,Data!AA57) -> 0.5085 | H7: =IF(Data!$A$1=TRUE,Data!M57,Data!AB57) -> 0.5253 | I7: =IF(Data!$A$1=TRUE,Data!N57,Data!AC57) -> 0.506 | J7: =IF(Data!$A$1=TRUE,Data!O57,Data!AD57) -> 0.5192 | L7: =IF(Data!$A$1=TRUE,IF(Data!Q57="","",Data!Q57),IF(Data!AF57="","",Data!AF57)) -> 0.4987
B10: PPC Market Shares (Romania)2
B11: Generation Market Share on RES (average)³ | D11: =Data!D62 -> 0.1410329297 | E11: =Data!E62 -> 0.1562979055 | G11: =IF(Data!$A$1=TRUE,Data!L62,Data!AA62) -> 0.1423741836 | H11: =IF(Data!$A$1=TRUE,Data!M62,Data!AB62) -> 0.1423141026 | I11: =IF(Data!$A$1=TRUE,Data!N62,Data!AC62) -> 0.1317696115 | J11: =IF(Data!$A$1=TRUE,Data!O62,Data!AD62) -> 0.1562979055 | L11: =IF(Data!$A$1=TRUE,IF(Data!Q62="","",Data!Q62),IF(Data!AF62="","",Data!AF62)) -> 0.2612231041
B12: Retail Market Share (average) | D12: =Data!D63 -> 0.1787160836 | E12: =Data!E63 -> 0.1582213 | G12: =IF(Data!$A$1=TRUE,Data!L63,Data!AA63) -> 0.1573521915 | H12: =IF(Data!$A$1=TRUE,Data!M63,Data!AB63) -> 0.154924182 | I12: =IF(Data!$A$1=TRUE,Data!N63,Data!AC63) -> 0.1580618251 | J12: =IF(Data!$A$1=TRUE,Data!O63,Data!AD63) -> 0.1582213 | L12: =IF(Data!$A$1=TRUE,IF(Data!Q63="","",Data!Q63),IF(Data!AF63="","",Data!AF63)) -> 0.1634904704
B14: Source: Company data. Provisional data for Q1 2025. 1. ΕnEx monthly reports 2. ANRE 3. Market Share in RES excl. Large Hydro

Sheet Installed Capacity
D2: 31.12.2023 | E2: 31.12.2024 | F2: 31.03.2025
B4: Installed Capacity (in MW) - Greece | D4: =SUM(D5:D8) -> 10106.64 | E4: =SUM(E5:E8) -> 10273.03 | F4: =SUM(F5:F8) -> 11002.05
B5: Gas | D5: 2689.25 | E5: 2689.25 | F5: 2689.25
B6: Oil | D6: 1820.69 | E6: 1802.6 | F6: 1848
B7: Lignite | D7: 1625 | E7: 1655 | F7: 1655
B8: RES | D8: =SUM(D9:D12) -> 3971.7 | E8: 4126.18 | F8: =SUM(F9:F12) -> 4809.8
B9: Large Hydro | D9: 3170.7 | E9: 3170.7 | F9: 3170.7
B10: Wind | D10: 273 | E10: 273.24 | F10: 316.24
B11: Solar | D11: 445 | E11: 599.24 | F11: 1240.24
B12: Other | D12: 83 | E12: 83 | F12: 82.62
D14: =D2 -> 31.12.2023 | E14: =E2 -> 31.12.2024 | F14: =F2 -> 31.03.2025
B16: Installed Capacity (in MW) - Romania | D16: =SUM(D17:D19) -> 597 | E16: =SUM(E17:E19) -> 1336 | F16: =SUM(F17:F19) -> 1336
B17: Wind | D17: 499 | E17: 1183 | F17: 1183
B18: Solar | D18: 98 | E18: 124 | F18: 124
B19: Other | D19: 0 | E19: 29 | F19: 29
D21: =D2 -> 31.12.2023 | E21: =E2 -> 31.12.2024 | F21: =F2 -> 31.03.2025
B23: Installed Capacity (in MW) - Bulgaria | D23: =D24 -> 0 | E23: =E24 -> 18 | F23: =F24 -> 18
B24: Wind | D24: 0 | E24: 18 | F24: 18
D26: =D2 -> 31.12.2023 | E26: =E2 -> 31.12.2024 | F26: 31.03.2025
B28: Installed Capacity (in MW) - Italy | D28: =D29 -> 0 | E28: =E29 -> 0 | F28: =F29 -> 32
B29: Solar | F29: 32
D31: =D2 -> 31.12.2023 | E31: =E2 -> 31.12.2024 | F31: =F2 -> 31.03.2025
B33: Installed Capacity (in MW) - GROUP | D33: =SUM(D34:D37) -> 10703.64 | E33: 11627.03 | F33: =SUM(F34:F37) -> 12388.05
B34: Gas | D34: =D5 -> 2689.25 | E34: 2689.25 | F34: 2689.25
B35: Oil | D35: 1820.69 | E35: 1802.6 | F35: 1848
B36: Lignite | D36: 1625 | E36: 1655 | F36: 1655
B37: RES | D37: =SUM(D38:D41) -> 4568.7 | E37: 5480.18 | F37: =SUM(F38:F41) -> 6195.8
B38: Large Hydro | D38: =D9 -> 3170.7 | E38: =E9 -> 3170.7 | F38: =F9 -> 3170.7
B39: Wind | D39: =D10+D17+D24 -> 772 | E39: =E10+E17+E24 -> 1474.24 | F39: =F10+F17+F24 -> 1517.24
B40: Solar | D40: =D11+D18+D29 -> 543 | E40: =E11+E18+E29 -> 723.24 | F40: =F11+F18+F29 -> 1396.24
B41: Other | D41: =D12+D19 -> 83 | E41: =E12+E19 -> 112 | F41: =F12+F19 -> 111.62

Sheet Other Operational KPIs
G1: =Data!$L$1 -> 2024 | L1: =Data!$Q$1 -> 2025
B2: Other Operational KPIs | D2: 2023 | E2: 2024 | G2: Q1 | H2: H1 | I2: 9M | J2: FY | L2: Q1
B4: RES capacity | D4: 4.6 GW | E4: 5.5 GW | G4: 4.7 GW | H4: 4.7 GW | I4: 4.9 GW | J4: 5.5 GW | L4: 6.2 GW
B5: RES capacity on total (%) | D5: 0.427 | E5: 0.471 | G5: 0.431 | H5: 0.408 | I5: 0.418 | J5: 0.471 | L5: 0.5
B6: RES production | D6: 6.1TWh | E6: 6.2TWh | G6: 1.6 TWh | H6: 3.1TWh | I6: 4.8 TWh | J6: 6.2TWh | L6: 1.5 TWh
B7: RES production on total (%) | D7: 0.297 | E7: 0.295 | G7: 0.337 | H7: 33.1% | I7: 0.308 | J7: 0.295 | L7: 0.271
B8: CO2 emissions intensity (Scope 1) | D8: 0.50 tCO2/MWh | E8: 0.49 tCO2/MWh | G8: 0.50 tCO2/MWh | H8: 0.47 tCO2/MWh | I8: 0.48 tCO2/MWh | J8: 0.49 tCO2/MWh | L8: 0.55 tCO2/MWh
B9: CO2 emissions (Scope 1) | D9: 9.7 MtCO2 | E9: 10.3 MtCO2 | G9: 2.3 MtCO2 | H9: 4.4MtCO2 | I9: 7.5 MtCO2 | J9: 10.3 MtCO2 | L9: 3.1 MtCO2
B11: SAIDI (Greece/Romania) | D11: 134/89 mins | E11: 132/82 mins | G11: 26/19 mins | H11: 59/38 mins | I11: 109/60 mins | J11: 132/82 mins | L11: 21/19 mins
B12: SAIFI (Greece/Romania) | D12: 1.8/2.5 | E12: 1.7/2.3 | G12: 0.3/0.6 | H12: 0.78/1.15 | I12: 1.4/1.8 | J12: 1.7/2.3 | L12: 0.3/0.5
B13: Total network length (Greece and Romania) | D13: 380 k km | E13: 386 k km | G13: 383 k km | H13: 383 k km | I13: 385 k km | J13: 386 k km | L13: 388 k km
B15: Online penetration/myPPC app (Greece) | D15: 0.29 | E15: 0.3 | G15: 0.299 | H15: 30.7% | I15: 0.317 | J15: 0.3 | L15: 0.32
B16: Online penetration/myPPC app (Romania) | D16: 0.59 | E16: 0.62 | G16: 0.6 | H16: 0.6 | I16: 0.61 | J16: 0.62 | L16: 0.64
B17: Charging points installed (Greece & Romania) | D17: 2401 | E17: 3087 | G17: 2490 | H17: 2696 | I17: 2925 | J17: 3087 | L17: 3267
B19: Note: Provisional data for Q1 2025

Sheet Income Statement
B2: Consolidated Income Statement (Condensed) | C2: GROUP
B4: (in €m - except share and per share data) | C4: 01.01.2023-31.12.2023 | D4: 01.01.2024-31.12.2024 | F4: 01.01.2024-31.03.2024 | G4: 01.01.2025-31.03.2025
B5: REVENUES:
B6: Revenue from energy sales | C6: 6409.218 | D6: 6588.461 | F6: 1488.127 | G6: 1884.73
B7: Revenue from natural gas sales | C7: 58.558 | D7: 189.418 | F7: 91.654 | G7: 98.36
B8: Other sales | C8: 1218.991 | D8: 2200.728 | F8: 356.516 | G8: 480.673
B9: Total | C9: =SUM(C6:C8) -> 7686.767 | D9: =SUM(D6:D8) -> 8978.607 | F9: =SUM(F6:F8) -> 1936.297 | G9: =SUM(G6:G8) -> 2463.763
B11: EXPENSES:
B12: Payroll cost | C12: 782.156 | D12: 939.209 | F12: 206.499 | G12: 252.657
B13: Merchandise | C13: 1.126 | D13: 428.288 | F13: 0.483 | G13: 130.289
B14: Liquid Fuels | C14: 724.522 | D14: 725.205 | F14: 118.27 | G14: 125.732
B15: Natural Gas | C15: 739.939 | D15: 882.731 | F15: 224.326 | G15: 308.369
B16: Depreciation and amortization | C16: 672.159 | D16: 928.364 | F16: 215.497 | G16: 272.561
B17: Energy purchases | C17: 1944.223 | D17: 1722.349 | F17: 350.437 | G17: 647.126
B18: Emission allowances | C18: 826.209 | D18: 833.153 | F18: 192.751 | G18: 214.07
B19: Provisions for expected credit losses | C19: 186.262 | D19: 46.84 | F19: 92.697 | G19: -91.179
B20: Financial (income)/expense, net | C20: 282.437 | D20: 373.752 | F20: 88.872 | G20: 112.171
B21: Impairment loss on assets | C21: -209.457 | D21: 207.211 | F21: 1.422 | G21: -5.473
B22: (Gains)/losses from associates and joint ventures | C22: 5.08 | D22: 3.512 | F22: 0.221 | G22: -0.878
B23: Other (income) / expenses, net | C23: 1100.688 | D23: 1681.394 | F23: 323.02 | G23: 435.929
B24: Total | C24: =SUM(C12:C23) -> 7055.344 | D24: =SUM(D12:D23) -> 8772.008 | F24: =SUM(F12:F23) -> 1814.495 | G24: =SUM(G12:G23) -> 2401.374
B26: PROFIT/(LOSS) BEFORE TAX | C26: =C9-C24 -> 631.423 | D26: =D9-D24 -> 206.599 | F26: =F9-F24 -> 121.802 | G26: =G9-G24 -> 62.389
B27: Income tax | C27: -137.231 | D27: -19.429 | F27: -35.842 | G27: -15.72
B29: NET PROFIT / (LOSS) | C29: =C26+C27 -> 494.192 | D29: =D26+D27 -> 187.17 | F29: =F26+F27 -> 85.96 | G29: =G26+G27 -> 46.669
B31: Attributable to:
B32: Shareholders of the company | C32: 437.532 | D32: 151.788 | F32: 40.21739064 | G32: 34.25832306
B33: Non – controlling interests | C33: 56.66 | D33: 35.382 | F33: 45.74260936 | G33: 12.41067694
B35: Earnings / (Losses) per share, basic and dilluted | C35: 1.181 | D35: 0.43 | F35: 0.236656322 | G35: 0.09837928949
B37: Weighted average number of shares (in m.) | C37: 370.370209 | D37: 352.673699 | F37: 363.227144 | G37: 348.2698186
B39: 1. For 2023: Restated figures compared to those published on 31.12.2023. For additional information, please see Note 6 of the Annual Financial Report 2024 (https://www.ppcgroup.com/media/wluldx1q/financial-report-2024.pdf).

Sheet Cash Flow
B2: Consolidated Cash Flow Statement (Condensed) | C2: GROUP
B4: (in €m) | C4: 01.01.2023-31.12.2023 | D4: 01.01.2024-31.12.2024 | F4: 01.01.2024-31.03.2024 | G4: 01.01.2025-31.03.2025
B6: Cash Flows from Operating activities
B8: Profit / (Loss) before tax | C8: 631.423 | D8: 206.599 | F8: 121.802 | G8: 62.389
B10: Adjustments:
B11: Depreciation and amortization | C11: 632.815 | D11: 863.561 | F11: 203.892 | G11: 259.308
B12: Unbilled revenue | C12: 226.804 | D12: 169.135 | F12: 158.016 | G12: 11.424
B13: Bargain gain from Romanian subsidiaries acqusition | C13: -243.175 | D13: 0 | F13: 0 | G13: 0
B14: Other adjustments | C14: 192.362 | D14: 254.294 | F14: 119.905 | G14: -28.437
B15: Operating profit/(loss) before working capital changes | C15: =SUM(C8:C14) -> 1440.229 | D15: =SUM(D8:D14) -> 1493.589 | F15: =SUM(F8:F14) -> 603.615 | G15: =SUM(G8:G14) -> 304.684
B17: (Increase)/decrease in:
B18: Trade receivables | C18: -322.668 | D18: 1.852 | F18: 21.821 | G18: -105.645
B19: Inventories | C19: -84.514 | D19: -4.165 | F19: -11.389 | G19: -35.296
B20: Increase/(decrease) in:
B21: Trade payables | C21: 441.952 | D21: 423.75 | F21: -279.081 | G21: -356.85
B22: Proceeds from long-term contract liabilities | C22: 95.472 | D22: 154.691 | F22: 31.572 | G22: 41.841
B23: Other receivables/payables | C23: -64.748 | D23: -390.958 | F23: 58.739 | G23: 627.699
B25: Net Cash from / (used in) Operating Activities | C25: =SUM(C15,C18:C23) -> 1505.723 | D25: =SUM(D15,D18:D23) -> 1678.759 | F25: =SUM(F15,F18:F23) -> 425.277 | G25: =SUM(G15,G18:G23) -> 476.433
B27: Cash Flows from Investing Activities
B28: Interest and dividends received | C28: 139.004 | D28: 158.581 | F28: 35.29 | G28: 27.027
B29: Capital expenditure for property, plant and equipment and intangible assets | C29: -1168.056 | D29: -1875.222 | F29: -322.985 | G29: -476.075
B30: Investments in subsidiaries and associates | C30: -2.784 | D30: -21.046 | F30: -23.96 | G30: -0.31
B31: Proceeds from subsidies and from the sale of subsidiary | C31: 6 | D31: 19.871 | F31: 3.166 | G31: 0.557
B32: Acquisition of subsidiaries, net of cash acquired and Loan receivables from former shareholder | C32: -1744.208 | D32: -976.646 | F32: -153.785 | G32: 0
B33: Net Cash from/ (used in) Investing Activities | C33: =SUM(C28:C32) -> -2770.044 | D33: =SUM(D28:D32) -> -2694.462 | F33: =SUM(F28:F32) -> -462.274 | G33: =SUM(G28:G32) -> -448.801
B35: Cash Flows from Financing Activities
B36: Net change in short-term borrowings | C36: -39.968 | D36: -17.079 | F36: 78.284 | G36: 197.273
B37: Proceeds from long-term borrowing | C37: 2424.9 | D37: 2378.163 | F37: 372.479 | G37: 400.887
B38: Principal payments of long-term borrowing | C38: -1276.526 | D38: -1193.018 | F38: -398.012 | G38: -105.623
B39: Principal lease payments of right-of-use assets | C39: -49.615 | D39: -86.63 | F39: -14.874 | G39: -17.409
B40: Interest paid and loans’ issuance fees | C40: -198.164 | D40: -340.501 | F40: -101.299 | G40: -63.128
B41: Dividends paid | C41: -62.475 | D41: -154.896 | F41: 0 | G41: 0
B42: Treasury shares | C42: -109.125 | D42: -171.548 | F42: -25.217 | G42: -37.156
B43: Share Capital from NCI | C43: 15.611 | D43: 0 | F43: 0 | G43: 0
B44: Net Cash from / (used in) Financing Activities | C44: =SUM(C36:C43) -> 704.638 | D44: =SUM(D36:D43) -> 414.491 | F44: =SUM(F36:F43) -> -88.639 | G44: =SUM(G36:G43) -> 374.844
B46: Net increase / (decrease) in cash and cash equivalents | C46: -559.682 | D46: -601.212 | F46: -125.637 | G46: 402.476
B47: Cash and cash equivalents at the beginning of the period | C47: 3159.484 | D47: 2599.802 | F47: 2599.802 | G47: 1998.59
B48: Net foreign exchange difference
B49: Cash and cash equivalents at the end of the period | C49: =C46+C47 -> 2599.802 | D49: 1998.59 | F49: =F46+F47 -> 2474.165 | G49: =G46+G47 -> 2401.066
B51: 1. For 2023: Restated figures compared to those published on 31.12.2023. For additional information, please see Note 6 of the Annual Financial Report 2024 (https://www.ppcgroup.com/media/wluldx1q/financial-report-2024.pdf).

Sheet Balance Sheet
B2: Consolidated Statement of Financial Position (Condensed) | C2: GROUP
B4: (in €m) | C4: 31.12.2023 | D4: 31.12.2024 | F4: 31.03.2025
B6: ASSETS
B8: Non – Current Assets:
B9: Property, plant and equipment, net | C9: 13299.047 | D9: 16160.601 | F9: 16352.556
B10: Intangible assets, net | C10: 1112.555 | D10: 957.249 | F10: 891.763
B11: Deferred tax asset | C11: 292.654 | D11: 645.896 | F11: 643.204
B12: Other non- current assets | C12: 454.248 | D12: 1100.604 | F12: 1125.369
B13: Total non-current assets | C13: =SUM(C9:C12) -> 15158.504 | D13: =SUM(D9:D12) -> 18864.35 | F13: =SUM(F9:F12) -> 19012.892
B15: Current Assets:
B16: Inventories | C16: 1046.531 | D16: 1290.348 | F16: 1321.793
B17: Trade receivables | C17: 1552.674 | D17: 1593.04 | F17: 1777.427
B18: Cash and cash equivalents and Restricted cash | C18: 2777.289 | D18: 2378.042 | F18: 2760.787
B19: Other current assets | C19: 3322.33 | D19: 3193.549 | F19: 2667.361
B20: Total Current Assets | C20: =SUM(C16:C19) -> 8698.824 | D20: =SUM(D16:D19) -> 8454.979 | F20: =SUM(F16:F19) -> 8527.368
B22: Total Assets | C22: =C13+C20 -> 23857.328 | D22: =D13+D20 -> 27319.329 | F22: =F13+F20 -> 27540.26
B24: EQUITY AND LIABILITIES
B25: EQUITY:
B26: Total Equity attributable to owners of the Parent | C26: 4550.75 | D26: 5046.467 | F26: 5076.168
B27: Non-Controlling interests | C27: 813.441 | D27: 994.479 | F27: 1006.89
B28: Total Equity | C28: =SUM(C26:C27) -> 5364.191 | D28: 6040.946 | F28: =SUM(F26:F27) -> 6083.058
B30: Non-Current Liabilities:
B31: Long - term borrowings | C31: 4419.795 | D31: 6233.016 | F31: 5715.574
B32: Provisions | C32: 799.855 | D32: 743.673 | F32: 726.697
B33: Financial liability from NCI Put option | C33: 1431.001 | D33: 1463.914 | F33: 1473.429
B34: Other non-current liabilities | C34: 3916.761 | D34: 4778.912 | F34: 4845.34
B35: Total Non-Current Liabilities | C35: =SUM(C31:C34) -> 10567.412 | D35: 13219.515 | F35: =SUM(F31:F34) -> 12761.04
B37: Current Liabilities:
B38: Trade and other payables | C38: 2095.15 | D38: 2729.14 | F38: 2342.947
B39: Short – term borrowings and Current portion of long - term borrowings | C39: 1421.131 | D39: 922.575 | F39: 1904.936
B40: Other current liabilities | C40: 4409.444 | D40: 4407.153 | F40: 4448.279
B41: Total Current Liabilities | C41: =SUM(C38:C40) -> 7925.725 | D41: 8058.868 | F41: =SUM(F38:F40) -> 8696.162
B43: Total Equity and Liabilities | C43: =C28+C35+C41 -> 23857.328 | D43: 27319.329 | F43: =F28+F35+F41 -> 27540.26
B45: 1. For 2023: Restated figures compared to those published on 31.12.2023. For additional information, please see Note 6 of the Annual Financial Report 2024 (https://www.ppcgroup.com/media/wluldx1q/financial-report-2024.pdf).

Sheet Investments
G1: =Data!$L$1 -> 2024 | L1: =Data!$Q$1 -> 2025 | N1: YoY Change (%)
B2: (in €m) | D2: 20231 | E2: 20241 | G2: =IF(Data!$A$1=TRUE,Data!G2,Data!V2) -> Q1 | H2: =IF(Data!$A$1=TRUE,Data!H2,Data!W2) -> H1 | I2: =IF(Data!$A$1=TRUE,Data!I2,Data!X2) -> 9M | J2: =IF(Data!$A$1=TRUE,Data!J2,Data!Y2) -> FY | L2: =IF(Data!$A$1=TRUE,Data!G2,Data!V2) -> Q1 | N2: =G2 -> Q1
B4: Investments | D4: =SUM(D6:D11) -> 2589.947 | E4: =SUM(E6:E11) -> 3047.899 | G4: =SUM(G6:G11) -> 500.729 | H4: =SUM(H6:H11) -> 1121.593424 | I4: 1607.137 | J4: 3047.899 | L4: =IF(SUM(L6:L11)=0,"",SUM(L6:L11)) -> 476.385 | N4: =IF(ISERROR(L4/G4-1),"",L4/G4-1) -> -0.04861711624
B6: Renewables2 | D6: =Data!D89 -> 843 | E6: =Data!E89 -> 1289 | G6: =IF(Data!$A$1=TRUE,Data!L89,Data!AA89) -> 191.631 | H6: =IF(Data!$A$1=TRUE,Data!M89,Data!AB89) -> 280.3184239 | I6: =IF(Data!$A$1=TRUE,Data!N89,Data!AC89) -> 344.526 | J6: =IF(Data!$A$1=TRUE,Data!O89,Data!AD89) -> 1289 | L6: =IF(Data!$A$1=TRUE,IF(Data!Q89="","",Data!Q89),Data!AF89) -> 104.046 | N6: =IF(ISERROR(L6/G6-1),"",L6/G6-1) -> -0.4570502685
B7: Distribution | D7: =Data!D90 -> 1342 | E7: =Data!E90 -> 1042.643 | G7: =IF(Data!$A$1=TRUE,Data!L90,Data!AA90) -> 228.094 | H7: =IF(Data!$A$1=TRUE,Data!M90,Data!AB90) -> 464.325 | I7: =IF(Data!$A$1=TRUE,Data!N90,Data!AC90) -> 721.08 | J7: =IF(Data!$A$1=TRUE,Data!O90,Data!AD90) -> 1042.643 | L7: =IF(Data!$A$1=TRUE,IF(Data!Q90="","",Data!Q90),Data!AF90) -> 282.265 | N7: 0.237494191
B8: Flexible Generation3 | D8: =Data!D91 -> 298.928 | E8: =Data!E91 -> 245.713 | G8: =IF(Data!$A$1=TRUE,Data!L91,Data!AA91) -> 53.643 | H8: =IF(Data!$A$1=TRUE,Data!M91,Data!AB91) -> 66.072 | I8: =IF(Data!$A$1=TRUE,Data!N91,Data!AC91) -> 182.234 | J8: =IF(Data!$A$1=TRUE,Data!O91,Data!AD91) -> 245.713 | L8: =IF(Data!$A$1=TRUE,IF(Data!Q91="","",Data!Q91),Data!AF91) -> 35.394 | N8: -0.3401935015
B9: Telecom | D9: =Data!D92 -> 25.803 | E9: =Data!E92 -> 92.822 | G9: =IF(Data!$A$1=TRUE,Data!L92,Data!AA92) -> 10.807 | H9: =IF(Data!$A$1=TRUE,Data!M92,Data!AB92) -> 31.432 | I9: =IF(Data!$A$1=TRUE,Data!N92,Data!AC92) -> 46.337 | J9: =IF(Data!$A$1=TRUE,Data!O92,Data!AD92) -> 92.822 | L9: =IF(Data!$A$1=TRUE,IF(Data!Q92="","",Data!Q92),Data!AF92) -> 18.441 | N9: 0.7063940039
B10: Digitalization/Efficiency | D10: =Data!D93 -> 32.216 | E10: =Data!E93 -> 66.721 | G10: =IF(Data!$A$1=TRUE,Data!L93,Data!AA93) -> 6.129 | H10: =IF(Data!$A$1=TRUE,Data!M93,Data!AB93) -> 18.871 | I10: =IF(Data!$A$1=TRUE,Data!N93,Data!AC93) -> 32.964 | J10: =IF(Data!$A$1=TRUE,Data!O93,Data!AD93) -> 66.721 | L10: =IF(Data!$A$1=TRUE,IF(Data!Q93="","",Data!Q93),Data!AF93) -> 18.084 | N10: 1.950562898
B11: Retail/E-mobility/Other | D11: =Data!D94 -> 48 | E11: =Data!E94 -> 311 | G11: =IF(Data!$A$1=TRUE,Data!L94,Data!AA94) -> 10.425 | H11: =IF(Data!$A$1=TRUE,Data!M94,Data!AB94) -> 260.575 | I11: =IF(Data!$A$1=TRUE,Data!N94,Data!AC94) -> 279.996 | J11: =IF(Data!$A$1=TRUE,Data!O94,Data!AD94) -> 311 | L11: =IF(Data!$A$1=TRUE,IF(Data!Q94="","",Data!Q94),Data!AF94) -> 18.155 | N11: 0.7414868106
B13: 1. Including acquisitions on a debt free, cash free basis. 2023 figures adjusted for State receivables from the Romanian State. 2. Renewables includes solar, wind, hydro. 3. Flexible generation includes, CCGT and conventional.

Sheet Other Financial KPIs
B2: (in €m) | G2: =Data!$L$1 -> 2024 | L2: =Data!$Q$1 -> 2025
B3: Adjusted EBITDA (per activity) | D3: 2023 | E3: 2024 | G3: Q1 | H3: H1 | I3: 9M | J3: FY | L3: Q1
B5: Integrated | D5: 710 | E5: 1025.1 | G5: 252.365 | H5: 517.497 | I5: 727.3 | J5: 1025.1 | L5: 306.396
B6: Distribution | D6: 577.4 | E6: 787.6 | G6: 206.924 | H6: 409.204 | I6: 620.7 | J6: 787.6 | L6: 147.066
B7: Total | D7: =SUM(D5:D6) -> 1287.4 | E7: =SUM(E5:E6) -> 1812.7 | G7: =SUM(G5:G6) -> 459.289 | H7: 926.701 | I7: =SUM(I5:I6) -> 1348 | J7: =SUM(J5:J6) -> 1812.7 | L7: =SUM(L5:L6) -> 453.462
B9: Adjusted EBITDA (per country) | D9: =D3 -> 2023 | E9: 2024 | G9: =IF(Data!$A$1=TRUE,Data!G2,Data!V2) -> Q1 | H9: =IF(Data!$A$1=TRUE,Data!H2,Data!W2) -> H1 | I9: =IF(Data!$A$1=TRUE,Data!I2,Data!X2) -> 9M | J9: 2024 | L9: =L3 -> Q1
B11: Greece | D11: 1213.749 | E11: 1472.258 | G11: 382.338 | H11: 730.044 | I11: 1055.8 | J11: 1472.258 | L11: 391.139
B12: Romania | D12: 73.665 | E12: 340.497 | G12: 76.95 | H12: 196.657 | I12: 292.2 | J12: 340.497 | L12: 62.323
B13: Total | D13: =SUM(D11:D12) -> 1287.414 | E13: =SUM(E11:E12) -> 1812.755 | G13: =SUM(G11:G12) -> 459.288 | H13: =SUM(H11:H12) -> 926.701 | I13: =SUM(I11:I12) -> 1348 | J13: =SUM(J11:J12) -> 1812.755 | L13: =SUM(L11:L12) -> 453.462
D15: 31.12.2023 | E15: 31.12.2024 | G15: 31.03.2024 | H15: 30.06.2024 | I15: 30.09.2024 | J15: 31.12.2024 | L15: 31.03.2025
B17: Net Debt | D17: 3167.8 | E17: 5090.7 | G17: 3376 | H17: 3826 | I17: 4604.4 | J17: 5090.7 | L17: 5194
D19: =D3 -> 2023 | E19: =E3 -> 2024 | G19: =IF(Data!$A$1=TRUE,Data!G2,Data!V2) -> Q1 | H19: =IF(Data!$A$1=TRUE,Data!H2,Data!W2) -> H1 | I19: =IF(Data!$A$1=TRUE,Data!I2,Data!X2) -> 9M | J19: =J3 -> FY | L19: =L3 -> Q1
B21: Net Debt/EBITDA | D21: 2 | E21: 2.8x | G21: 2 | H21: 2.3x | I21: 2.7 | J21: 2.8x | L21: 2.9x
B23: Notes: FY2023 figures include the impact from the operations in Romania since October 25, 2023. 1. Based on PF LTM Adj. EBITDA. 2. Based on LTM Adj. EBITDA

Sheet APMs Q1 2024 vs Q1 2025
B3: TABLE A - EBITDA (Operating Income before depreciation amortization and impairment net financial expenses and taxes) | G3: EBITDA serves to better analyze the Group’s operating results and is calculated as follows: Total turnover minus total operating expenses before depreciation amortization and impairment. Calculation of EBITDA is presented in Table A.
C4: GROUP
B5: Amounts in € m. | C5: 01.01-31.03.2025 | D5: 01.01-31.03.2024
B7: Total Turnover (1) | C7: 2463.763 | D7: 1936.297
B8: Less:
B9: Operating expenses before depreciation and impairment (2): | C9: 2021.965 | D9: 1508.942
B10: Payroll cost | C10: 252.657 | D10: 206.499
B11: Liquid fuels | C11: 125.732 | D11: 118.27
B12: Natural gas | C12: 308.369 | D12: 224.326
B13: Energy purchases | C13: 647.126 | D13: 350.437
B14: Emission allowances | C14: 214.07 | D14: 192.751
B15: Provisions for expected credit losses | C15: -91.179 | D15: 92.697
B16: Other (income), expenses, net | C16: 565.19 | D16: 323.962
B17: EBITDA (Α) = [(1) - (2)] | C17: 441.798 | D17: 427.355
B20: TABLE B - Operating Expenditure before depreciation and impairment net financial expenses profit/(loss) from the sale of associates and taxes excluding Special items | G20: Operating expenditure before depreciation and impairment without special items is calculated by subtracting the Special items mentioned in the Adjusted EBITDA note below from the figure calculated for Operating expenses before depreciation and impairment in the EBITDA measure. It is presented in Table B.
C21: GROUP
B22: Amounts in € m. | C22: 01.01-31.03.2025 | D22: 01.01-31.03.2024
B24: Operating expenses before depreciation and impairment (2) | C24: 2021.965 | D24: 1508.942
B25: Less Special items:
B26: Provision for allowance for employees’ severance payments | C26: 5.169 | D26: -
B27: Loss from valuation of electricity purchase and sale contracts | C27: 6.496 | D27: 31.934
B28: Operating expenses before depreciation and impairment without Special items | C28: 2010.3 | D28: 1477.008
B31: TABLE C - Adjusted EBITDA (Operating Income before depreciation and impairment net financial expenses and taxes) | G31: Adjusted EBITDA serves to better analyze the Group's operating results excluding the impact of Special items. For the three-month period ended 31.03.2024 the Special item that affected Adjusted EBITDA is Loss from valuation of electricity purchase and sale contracts amounting to € 32 million for the Group (negative impact). For the three-month period ended 31.03.2025, the special items that affected the Adjusted EBITDA are the following: a) a provision for allowance for employees’ severance payments amounting to € 5 million for the Group (negative impact) and b) the valuation of electricity purchase and sale contracts amounting to € 6 million for the Group (negative impact). Adjusted EBITDA is presented in Table C.
C32: GROUP
B33: Amounts in € m. | C33: 01.01-31.03.2025 | D33: 01.01-31.03.2024
B35: EBITDA (1) | C35: 441.798 | D35: 427.355
B36: Plus Special items (2): | C36: 11.665 | D36: 31.934
B37: Provision for allowance for employees’ severance payments | C37: 5.169 | D37: -
B38: Loss from valuation of electricity purchase and sale contracts | C38: 6.496 | D38: 31.934
B39: Adjusted EBITDA (3) = [(1)+(2)] | C39: 453.463 | D39: 459.289
B42: TABLE D - Adjusted Net Income/(Loss) | G42: Adjusted net income/(loss), this Index serves to better analyze the results of the Group, excluding the effect of Special items and the calculated tax on them. Furthermore, concerning the Group, the Impairment loss on assets, the depreciation from revaluation of fixed assets and the calculated tax on them has been excluded for the three-month period ended 31.03.2025 and 31.03.2024. The calculations are presented in Table D.
C43: GROUP
B44: Amounts in € m. | C44: 01.01-31.03.2025 | D44: 01.01-31.03.2024
B46: NET INCOME AFTER TAX (A) | C46: 46.669 | D46: 85.96
B47: plus Special items (1):
B48: Loss from valuation of electricity purchase and sale contracts | C48: 6.496 | D48: 31.934
B49: Provision for allowance for employees’ severance payments | C49: 5.169 | D49: -
B50: plus other figures (2): | C50: 0 | D50: 0
B51: Impairment loss on assets | C51: - | D51: 1.422
B52: Depreciation from revaluation of fixed assets | C52: 28.486 | D52: -
B53: minus: | C53: 0 | D53: 0
B54: Adjustments to tax for Special items/Impairment loss on assets/Depreciation from revaluation of fixed assets (3) | C54: 8.629 | D54: 7.338
B55: Adjusted Net Income [(Α)+(1)+(2)-(3)] | C55: 78.191 | D55: 111.978
B58: Table E - Adjusted Net Income/(Loss) after Minorities | G58: Adjusted Net Income/(Loss) after Minorities serves to better analyze the results of the Group, excluding the effect of Minorities, and Minorities on Special items. The calculations are presented in Table E.
C59: GROUP
B60: Amounts in € m. | C60: 01.01-31.03.2025 | D60: 01.01-31.03.2024
B62: Adjusted Net Income (Β) | C62: 78.191 | D62: 111.978
B63: minus:
B64: Minorities (1) | C64: 12.411 | D64: 45.743
B65: Plus Adjustments to Minorities for Special items (2):
B66: Losses from valuation of electricity purchase and sale contracts and from Impairment loss on assets | C66: 10.851 | D66: 21.993
B67: Adjusted Net Income after Minorities [(Β)-(1)+(2)] | C67: 76.631 | D67: 88.228
B70: TABLE F – NET DEBT | G70: Net debt is an APM that Management uses to evaluate the Group’s capital structure as well as leverage. Net debt is calculated by adding long-term loans the current portion of long-term loans and short-term loans and subtracting the total cash and cash equivalents restricted cash related to loan agreements and financial assets measured at fair value through other comprehensive income and adding the unamortized portion of loans issuance fees and loan amendments IFRS 9. Calculation of Net Debt is presented in Table F.
C71: GROUP
B72: Amounts in € m. | C72: 31.03.2025 | D72: 31.03.2024 | E72: 31.12.2024
B74: Long-term borrowing | C74: 5715.6 | D74: 4224.4 | E74: 6233
B75: Short-term borrowing and Current portion of long-term borrowing | C75: 1905 | D75: 1700.6 | E75: 922.6
B76: Restricted cash and Cash and cash equivalents | C76: -2550.7 | D76: -2625.8 | E76: -2161.3
B77: Financial assets measured at fair value through other comprehensive income | C77: -0.3 | D77: -0.3 | E77: -0.3
B78: Unamortized portion of loans issuance fees and loan amendments IFRS 9 | C78: 124 | D78: 77.5 | E78: 96.8
B79: TOTAL | C79: 5193.6 | D79: 3376.4 | E79: 5090.8

Sheet Disclaimer

Sheet IR Contact
